{"text_format":"1","workbook":"xlsx","n_sheets":45,"sheets":["TitlePage","General Notes","Chemical Notes","Revisions","Contents","A01","A02","A03","B01","B02","B03","B05","B05-Alt","B06","B06-Alt","B07","C01a","C01a-Sup","C01b","C01b-Sup","C02a","C02b","C03a","C03b","D05","D08a","D08b","D11","E01","E02","E03","E04","F05a","F05b","F05c","F05d","F05e","F08","F14a","F14b","G01","G02","G03","G07a","G07b"],"not_rendered":{"charts":3,"images":4,"macros":1,"external_links":1,"defined_names":26,"comments":0,"pivot_tables":0},"unopened":[],"bounds":{"document_bytes":16777216,"sheet_cells":100000,"rows_first":2000,"rows_last":500,"rows_between":2000,"halvings":0,"cell_chars":16384,"cell_head_chars":4096},"cells_cut":0,"cells_raw":0,"read":"whole","date_system":"1900"}

{"sheet":"TitlePage","index":0,"n_rows":51,"n_cols":3,"rows_kept":51,"cut":false,"hidden":false,"merged":[[0,1,4,7],[5,2,7,6],[50,0,50,8]]}
["Title page"]
[]
[]
[]
[]
[null,null,"Custom Workbook for Ash Tree Injections with \nTree-äge (Emamectin benzoate)"]
[]
[]
[]
[]
[]
[]
[]
[]
[]
[]
[]
[]
[]
[]
[]
[]
[]
[]
[]
[]
[]
[]
[]
[]
[]
[]
[]
[]
[]
[]
[]
[]
[]
[]
[]
[]
[]
[]
[]
[]
[]
[]
[]
[]
["2010-07-04"]

{"sheet":"General Notes","index":1,"n_rows":59,"n_cols":3,"rows_kept":59,"cut":false,"hidden":false,"merged":[[0,0,0,2]]}
["General Notes"]
[null,"Prepared by:","Patrick R Durkin"]
[null,"Program Version:","N/A"]
[null,"Database Used:","N/A"]
[null,"Template Workbook:","N/A"]
[null,"Base Workbook:","N/A"]
[]
["Color Codes in WorksheetMaker Version 5"]
[]
[]
[]
[]
["Color Codes used in Workbook for Front Matter, Data and Calculation Worksheets"]
[null,"Green shading ","This is a default value or a user specified a value.  You can change these values as you see fit but you should have a reason for doing so."]
[null,"Yellow shading ","This is a source for a link in other parts of the workbook.  If you have good reason to change the value, you should note the change (with your reason) in the “Revisions” page."]
[null,"Blue shading ","This cell is linked to another cell in the workbook.  Do not change this value.  If you change any of these values, the workbook may not update correctly."]
[null,"Blue shading blue border ","This cell is linked to a Program parameter in Worksheet A01.  Do not change this value.  If you want the value to change, go to Worksheet A01 and change the value in that worksheet."]
[null,"Purple Shading","Indicates (for information only) that the typical of order of Lower and Upper values is intentionally reversed.  This is only used in the second (label) column."]
[null,"Italics, no shading","The value in this cell is generated by a formula (the number that you see is the result of an equation).  This cell is linked only to other cells in the worksheet.  Do not change this value."]
[]
[]
[]
[]
[]
["Color Codes used in Workbook for Risk Characterization Worksheets"]
[null,"HQ ≥ 2","For hazard quotient greater than 2, the number is in bold font with a red background and rounded to the nearest integer."]
[null,"HQ > 1 but < 2","For hazard quotient greater than 1 but less than two, the number is in bold font with a white background and rounded to one significant place after the decimal."]
[null,"HQ ≥ 0.1 but <1","For hazard quotient greater than 0.1 but less than one, the number is in regular font with a white background and rounded to one significant place after the decimal."]
[null,"HQ < 0.1","For hazard quotient less than 0.1, the number is in regular font with a white background.   The number is expressed in scientific notation and rounded to one significant place -- e.g., 2E-02 rather than 0.02."]
[]
[]
[]
[]
[]
[]
[]
[]
[]
[]
[]
[]
[]
[]
[]
[]
[]
[]
[]
[]
[]
[]
[]
[]
[]
[null,"Prepared by:","Patrick R Durkin"]
[null,"Program Version:","5.00.64"]
[null,"Database Used:","FS WsMkr V5-01a.mdb"]
[null,"Template Workbook:","FS WsMkr V5-01a.mdb"]
[null,"Base Workbook:","FS WSMkr Blank V05-01a.xls"]

{"sheet":"Chemical Notes","index":2,"n_rows":5,"n_cols":4,"rows_kept":5,"cut":false,"hidden":false,"merged":[[4,0,49,8],[0,0,0,2],[1,0,1,2],[1,3,1,5],[2,0,2,2],[2,3,2,4]]}
["Chemical specific notes"]
["Risk Assessment:",null,null,"SERA TR-052-23-02a"]
["Report Date:",null,null,"October, 2010"]
[]
["WorksheetMaker does not currently support tree-injection.  Based on the risk assessments associated with tree injection (i.e., imidacloprid, dinotefuran, and now emamectin benzoate), the nature of the available data and approaches taken in the risk assessments are substantailly different.  Thus, the implementation of tree-injection in WorksheetMaker is not warrented at this time.\n\nConsequently, this EXCEL workbook for emamectin benzoate is a custom workbook developed by tree-injections of emamectin benzoate.  While components of WorksheetMaker (Version 5.00.63) were used to develop this workbook, WorksheetMaker was not used directly.  Nonetheless, the workbook is structured in such a manner as to be consistent with workbooks created by WorksheetMaker.  Thus, if you are familiar with WorksheetMaker workbooks, you should be comfortable using and modifying the current workbook for any specific project.  See Worksheet A01.\n\n"]

{"sheet":"Revisions","index":3,"n_rows":1,"n_cols":1,"rows_kept":1,"cut":false,"hidden":false,"merged":[]}
["Revision Histroy"]

{"sheet":"Contents","index":4,"n_rows":49,"n_cols":2,"rows_kept":49,"cut":false,"hidden":false,"merged":[]}
["Table of Contents"]
["Work-sheet No.","Title"]
["TitlePage","Title page"]
["General Notes","General Notes"]
["Chemical Notes","Chemical specific notes"]
["Revisions","Revision Histroy"]
["Contents","Table of Contents"]
["A01","Program Data for Tree Injection"]
["A02","General reference values and exposure factors used in worksheets."]
["A03","Consumption values used in worksheets"]
["B01","Chemical and Physical Properties for  Emamectin benzoate "]
["B02","Toxicity values for  Emamectin benzoate "]
["B03","Summary of chemical specific dermal absorption values"]
["B05","Calculation of Zero-Order Dermal Permeability Rate (Kp) in cm/hour using MW and Kow for Emamectin benzoate."]
["B05-Alt","Calculation of Zero-Order Dermal Permeability Rate (Kp) in cm/hour using Kow for Emamectin benzoate but Upper Bound MW of 700 g/mole."]
["B06","Calculation of First-Order Dermal Absorption Rate using MW and Kow for Emamectin benzoate."]
["B06-Alt","Calculation of First-Order Dermal Absorption Rate using Kow for Emamectin benzoate but upper bound MW of 400 g/mole."]
["B07","Calculations for Emamectin benzoate dosing and concentrations in leaves."]
["C01a","Exposure estimates for Workers based on Standard Forest Service Methods with PPE"]
["C01a-Sup","Exposure estimates for Workers based on Standard Forest Service Methods Without PPE"]
["C01b","Exposure estimates based on Pesticide Handlers Exposure Database (PHED) Method With Gloves"]
["C01b-Sup","Exposure estimates based on Pesticide Handlers Exposure Database (PHED) Method  Without Gloves"]
["C02a","Accidental Dermal Exposure Assessment Using Zero-Order Absorption, Worker, Surface Area, Hands, for 1 minute(s)"]
["C02b","Accidental Dermal Exposure Assessment Using Zero-Order Absorption, Worker, Surface Area, Hands, for 60 minute(s)"]
["C03a","Accidental Dermal Exposure Assessment Using First-Order Absorption, Worker, Surface Area, Hands, for 60 minute(s)"]
["C03b","Accidental Dermal Exposure Assessment Using First-Order Absorption, Worker, Surface Area, Lower legs, for 60 minute(s)"]
["D05","Acute exposure of Child after an accidental spill of the pesticide into a pond"]
["D08a","Acute scenario for the consumption of contaminated fish by Adult Male after an accidental spill of the pesticide into a pond"]
["D08b","Acute scenario for the consumption of contaminated fish by Subsistence Populations after an accidental spill of the pesticide into a pond"]
["D11","Swimming Exposure Assessment Using Zero-Order Absorption, Adult Female, Surface Area, Whole body, for 60 minute(s) following an accidental spill"]
["E01","Worksheet E01: Summary of Worker Exposure Assessments"]
["E02","Worksheet E01: Summary of Worker Hazard Quotients (Toxicity)"]
["E03","Worksheet E03: Summary of Exposure Assessments for the General Public"]
["E04","Worksheet E03: Summary of Hazard Quotients (Toxicity) for the General Public"]
["F05a","Acute exposure of Small Mammal after an accidental spill of the pesticide into a pond"]
["F05b","Acute exposure of Small Bird after an accidental spill of the pesticide into a pond"]
["F05c","Acute exposure of Carnivorous mammal after an accidental spill of the pesticide into a pond"]
["F05d","Acute exposure of Large Mammal after an accidental spill of the pesticide into a pond"]
["F05e","Acute exposure of Small Bird after an accidental spill of the pesticide into a pond"]
["F08","Acute scenario for the consumption of contaminated fish by Fish-eating bird after an accidental spill of the pesticide into a pond"]
["F14a1","Consumption of Contaminated Insects, Small Mammal, acute exposure scenario, assuming uniform distribution to leaves"]
["F14a2","Consumption of Contaminated Insects, Small Mammal, acute exposure scenario, assuming limited distribution to leaves"]
["F14b1","Consumption of Contaminated Insects, Small Bird, acute exposure scenario, assuming uniform distribution to leaves"]
["F14b2","Consumption of Contaminated Insects, Small Bird, acute exposure scenario, assuming limited distribution to leaves"]
["G01","Summary of Exposure Assessments for the Terrestrial Animals"]
["G02","Summary of Exposure Assessments for the Terrestrial Animals"]
["G03","Worksheet G03: Summary of Hazard Quotients for Aquatic Species"]
["G07a","Consumption of Leaves of Treated Ash Tree, Assuming Uniform Distribution to Leaves"]
["G07b","Consumption of Leaves of Treated Ash Tree, Assuming Limited Distribution to Leaves"]

{"sheet":"A01","index":5,"n_rows":31,"n_cols":5,"rows_kept":31,"cut":false,"hidden":false,"merged":[[27,0,30,0],[22,0,25,0],[0,0,0,4],[3,0,6,0],[7,0,10,0],[14,0,17,0],[18,0,21,0]]}
["Program Data for Tree Injection"]
["Parameter/Assumption","Code / Range","Equation/ Value","Units","Reference/Equation"]
["Amount per Injection","InjAmnt",3.3999999999999998E-3,"lb a.i./injection site"]
["Number of Injections per Day","Ninj"]
[null,"Central ",80,"Unitless"]
[null,"Lower ",40]
[null,"Upper ",160]
["Amount a.i. handled per day: ","Amnt","InjAmnt x Ninj"]
[null,"Central ",{"$f":"C$3*C5","v":0.27199999999999996},"lb a.i.","Eq"]
[null,"Lower ",{"$f":"C$3*C6","v":0.13599999999999998},null,"Eq"]
[null,"Upper ",{"$f":"C$3*C7","v":0.54399999999999993},null,"Eq"]
["Density of formulation","Dens",1.08,"g/mL","MSDS"]
["% a.i. in formulation","%a.i.",0.04,null,"Product label"]
["Concentration of a.i. in formulation","ConcA.I.",{"$f":"C12*1000*C13","v":43.2},"mg/mL","1000 mg/g x Dens x %a.i.."]
["Dilution factor for formulation","DilF"]
[null,"Central ",0.5,"1 part water","Product label"]
[null,"Lower ",0.25,"3 part water","Product label"]
[null,"Upper ",1,"No dilution","Product label"]
["Concentration in field solution","ConcF","ConcA.I. x DilF"]
[null,"Central ",{"$f":"C$14*C16","v":21.6},"mg/mL","Eq"]
[null,"Lower ",{"$f":"C$14*C17","v":10.8},null,"Eq"]
[null,"Upper ",{"$f":"C$14*C18","v":43.2},null,"Eq"]
["Range of doses per tree","DoseTree"]
[null,"Central ",5000,"mg","Section 3.2.3.4.1. of RA"]
[null,"Lower ",600]
[null,"Upper ",42600]
["Volume of pond for accidental spill","PondVol",20000000,"Liters","Section 3.2.3.4.1. of RA"]
["Estimated Residues in Contaminated Insects","InsectC"]
[null,"Central ",4.0000000000000001E-3,"mg/kg bw","Section 4.2.2.3 of RA"]
[null,"Lower ",1E-4]
[null,"Upper ",0.16]

{"sheet":"A02","index":6,"n_rows":142,"n_cols":6,"rows_kept":142,"cut":false,"hidden":false,"merged":[[0,0,0,4]]}
["General reference values and exposure factors used in worksheets."]
["Receptor","Factor","Value","Units"," Reference","Reference Note"]
["Adult Female","Body weight",64,"kg","U.S. EPA/ORD 1985","page 5, Table 2-2"]
["Adult Female","Surface Area, Feet and lower Legs",2915,"cm2","U.S. EPA/ORD 1992","p. 8-11, Table 8-3, total for feet and lower legs"]
["Adult Female","Surface Area, Wearing shorts and T-shirt",5300,"cm2","U.S. EPA/ORD 1992","p. 8-11, Table 8-3, total for arms, hands, lower legs, and feet."]
["Adult Female","Surface Area, Whole body",16900,"cm2","U.S. EPA/ORD 1997","p. 6-13, Table 6-3, whole body, 50th percentile"]
["Adult Male","Body weight",70,"kg","ICRP 1975","p. 13."]
["Subsistence Populations","Body weight",70,"kg","ICRP 1975","p. 13"]
["Amphibian","Kilocalories, alpha parameter for allometric equation",5.3999999999999999E-2,"BW(g),Kcal (kcal/day)","U.S. EPA/ORD 1993","p. 3-7, equation 3-14"]
["Amphibian","Kilocalories, alpha parameter for allometric equation",1.2999999999999999E-2,"BW(g),KCal(kcal/day)","U.S. EPA/ORD 1993","Eq. 3-13, p. 3-7, insectivores"]
["Amphibian","Kilocalories, beta parameter for allometric equation",0.79900000000000004,"BW(g),Kcal (kcal/day)","U.S. EPA/ORD 1993","p. 3-7, equation 3-14"]
["Amphibian","Kilocalories, beta parameter for allometric equation",0.77300000000000002,"BW(g),KCal(kcal/day)","U.S. EPA/ORD 1993","Eq. 3-13, p. 3-7, insectivores"]
["AmphBullFrog","Food consumption, alpha parameter for allometric equation",1.0900000000000001,"BW(g),FC(g)","SERA 2010","Figure 15"]
["AmphBullFrog","Food consumption, beta parameter for allometric equation",0.17230000000000001,"BW(g),FC(g)","SERA 2010","Figure 15"]
["Aerial Spray Worker","Absorbed dose rate, central estimate",3.0000000000000001E-5,"(mg/kg bw)/(lbs handled per day)","SERA 2007","Acres treated per hour"]
["Aerial Spray Worker","Absorbed dose rate, lower range",9.9999999999999995E-7,"(mg/kg bw)/(lbs handled per day)","SERA 2007","Acres treated per hour"]
["Aerial Spray Worker","Absorbed dose rate, upper range",1E-4,"(mg/kg bw)/(lbs handled per day)","SERA 2007","Acres treated per hour"]
["Aerial Spray Worker","Hours of application per day, central estimate",7,"Hours per day","USDA 1989a","N/A"]
["Aerial Spray Worker","Hours of application per day, lower range",6,"Hours per day","USDA 1989a","N/A"]
["Aerial Spray Worker","Hours of application per day, upper range",8,"Hours per day","USDA 1989a","N/A"]
["Aerial Spray Worker","Acres treated per hour, central estimate",70,"acres/hour","USDA 1989a","Acres treated per hour"]
["Aerial Spray Worker","Acres treated per hour, lower range",40,"acres/hour","USDA 1989a","Acres treated per hour"]
["Aerial Spray Worker","Acres treated per hour, upper range",100,"acres/hour","USDA 1989a","Acres treated per hour"]
["Backpack Worker","Absorbed dose rate, central estimate",3.0000000000000001E-3,"(mg/kg bw)/(lbs handled per day)","SERA 2007","Acres treated per hour"]
["Backpack Worker","Absorbed dose rate, lower range",2.9999999999999997E-4,"(mg/kg bw)/(lbs handled per day)","SERA 2007","Acres treated per hour"]
["Backpack Worker","Absorbed dose rate, upper range",0.01,"(mg/kg bw)/(lbs handled per day)","SERA 2007","Acres treated per hour"]
["Backpack Worker","Hours of application per day, central estimate",7,"Hours per day","USDA 1989a","N/A"]
["Backpack Worker","Hours of application per day, lower range",6,"Hours per day","USDA 1989a","N/A"]
["Backpack Worker","Hours of application per day, upper range",8,"Hours per day","USDA 1989a","N/A"]
["Backpack Worker","Acres treated per hour, central estimate",0.625,"acres/hour","USDA 1989a","Acres treated per hour"]
["Backpack Worker","Acres treated per hour, lower range",0.25,"acres/hour","USDA 1989a","Acres treated per hour"]
["Backpack Worker","Acres treated per hour, upper range",1,"acres/hour","USDA 1989a","Acres treated per hour"]
["Birds","Food consumption, alpha parameter for allometric equation",0.64800000000000002,"BW(g),FC(g)","U.S. EPA/ORD 1993","Eq. 3-3, p. 3-4, all birds"]
["Birds","Food consumption, beta parameter for allometric equation",0.65100000000000002,"BW(g),FC(g)","U.S. EPA/ORD 1993","Eq. 3-3, p. 3-4, all birds"]
["Carnivorous bird","Body weight",0.63700000000000001,"kg","Dunning 1993","p. 97. Female Spotted Owl (Strix occidentalis).  Range of 548 to 760 g."]
["Carnivorous bird","Kilocalories, alpha parameter for allometric equation",1.1459999999999999,"BW(g),KCal(kcal/day)","U.S. EPA/ORD 1993","Eq. 3-37, p. 3-23, non-passerines"]
["Carnivorous bird","Kilocalories, beta parameter for allometric equation",0.749,"BW(g),KCal(kcal/day)","U.S. EPA/ORD 1993","Eq. 3-37, p. 3-23, non-passerines"]
["Carnivorous bird","Water consumption, alpha parameter for allometric equation",5.8999999999999997E-2,"BW(kg), WC(L)","U.S. EPA/ORD 1993","Eq. 3-15, p. 3-8"]
["Carnivorous bird","Water consumption, beta parameter for allometric equation",0.67,"BW(kg), WC(L)","U.S. EPA/ORD 1993","Eq. 3-15, p. 3-8"]
["Large Bird","Body weight",4,"kg","Default","Canada goose"]
["Large Bird","Kilocalories, alpha parameter for allometric equation",3.12,"BW(g),KCal(kcal/day)","U.S. EPA/ORD 1993","Eq. 3-35, p. 3-22, all birds"]
["Large Bird","Kilocalories, beta parameter for allometric equation",0.60399999999999998,"BW(g),KCal(kcal/day)","U.S. EPA/ORD 1993","Eq. 3-35, p. 3-22, all birds"]
["Large Bird","Water consumption, alpha parameter for allometric equation",5.8999999999999997E-2,"BW(kg), WC(L)","U.S. EPA/ORD 1993","Eq. 3-15, p. 3-8"]
["Large Bird","Water consumption, beta parameter for allometric equation",0.67,"BW(kg), WC(L)","U.S. EPA/ORD 1993","Eq. 3-15, p. 3-8"]
["Bird, non-Passerine","Food consumption, alpha parameter for allometric equation",0.30099999999999999,"BW(g),FC(g)","U.S. EPA/ORD 1993","Eq. 3-5, p. 3-5, non-passerines"]
["Bird, non-Passerine","Food consumption, beta parameter for allometric equation",0.751,"BW(g),FC(g)","U.S. EPA/ORD 1993","Eq. 3-5, p. 3-5, non-passerines"]
["BrdPass","Food consumption, alpha parameter for allometric equation",0.39800000000000002,"BW(g), FC(g)","U.S. EPA/ORD 1993","Eq. 3-4, p. 3-4, passerines"]
["BrdPass","Food consumption, beta parameter for allometric equation",0.85,"BW(g),FC(g)","U.S. EPA/ORD 1993","Eq. 3-4, p. 3-4, passerines"]
["Bird, Passerine","Food consumption, alpha parameter for allometric equation",0.64800000000000002,"BW(g),FC(g)","U.S. EPA/ORD 1993","Eq. 3-4, p. 3-4, passerines"]
["Bird, Passerine","Food consumption, beta parameter for allometric equation",0.85,"BW(g),FC(g)","U.S. EPA/ORD 1993","Eq. 3-4, p. 3-4, passerines"]
["Small Bird","Body weight",0.01,"kg","Default","N/A"]
["Small Bird","Kilocalories, alpha parameter for allometric equation",3.12,"BW(g),KCal(kcal/day)","U.S. EPA/ORD 1993","Eq. 3-35, p. 3-22, all birds"]
["Small Bird","Kilocalories, beta parameter for allometric equation",0.60399999999999998,"BW(g),KCal(kcal/day)","U.S. EPA/ORD 1993","Eq. 3-35, p. 3-22, all birds"]
["Small Bird","Water consumption, alpha parameter for allometric equation",5.8999999999999997E-2,"BW(kg), WC(L)","U.S. EPA/ORD 1993","Eq. 3-15, p. 3-8"]
["Small Bird","Water consumption, beta parameter for allometric equation",0.67,"BW(kg), WC(L)","U.S. EPA/ORD 1993","Eq. 3-15, p. 3-8"]
["Child","Body weight",13.3,"kg","U.S. EPA/ORD 1996","p. 7-1, Table 7-2"]
["Child","Surface Area, Whole body",6030,"cm2","U.S. EPA/ORD 1996","p. 6-15, Table 6-6, 50th percentile."]
["Conversion Factors","liters per gal",3.7850000000000001,"L/gal","N/A","N/A"]
["Conversion Factors","pound per milligram",453600,"mg/lb","N/A","N/A"]
["Conversion Factors","lbac2mgcm2",1.1209999999999999E-2,"mg/cm2 per lb/acre","N/A","N/A"]
["Conversion Factors","lbac2ugcm2",11.21,"ug/cm2 per lb/acre","N/A","N/A"]
["Conversion Factors","conversion for milligrams to pounds",2.204E-6,"lb/mg","N/A","N/A"]
["Conversion Factors","conversion for milliliters to gallons",3785,"ml/gal","N/A","N/A"]
["Small insects","Caloric content (wet weight)",1.5,"kcal/g","U.S. EPA/ORD 1993","Table 4-1, p. 4-13.  Value for beetles. Wet weight"]
["Vegetation","Caloric content (dry weight)",2.46,"kcal/g","U.S. EPA/ORD 1993","p. 3-5"]
["Vegetation","Water content (proportion)",0.85,"unitless","U.S. EPA/ORD 1993","p. 4-14"]
["Ground Spray Worker","Absorbed dose rate, central estimate",2.0000000000000001E-4,"(mg/kg bw)/(lbs handled per day)","SERA 2007","Acres treated per hour"]
["Ground Spray Worker","Absorbed dose rate, lower range",1.0000000000000001E-5,"(mg/kg bw)/(lbs handled per day)","SERA 2007","Acres treated per hour"]
["Ground Spray Worker","Absorbed dose rate, upper range",8.9999999999999998E-4,"(mg/kg bw)/(lbs handled per day)","SERA 2007","Acres treated per hour"]
["Ground Spray Worker","Hours of application per day, central estimate",7,"Hours per day","USDA 1989a","N/A"]
["Ground Spray Worker","Hours of application per day, lower range",6,"Hours per day","USDA 1989a","N/A"]
["Ground Spray Worker","Hours of application per day, upper range",8,"Hours per day","USDA 1989a","N/A"]
["Ground Spray Worker","Acres treated per hour, central estimate",16,"acres/hour","USDA 1989a","Acres treated per hour"]
["Ground Spray Worker","Acres treated per hour, lower range",11,"acres/hour","USDA 1989a","Acres treated per hour"]
["Ground Spray Worker","Acres treated per hour, upper range",21,"acres/hour","USDA 1989a","Acres treated per hour"]
["Honeybee","Body weight",9.2999999999999997E-5,"kg","Default","N/A"]
["Honeybee","Surface Area, Whole body",1.42,"cm2","Humphery and Dykes 2008","Based on a bee with a body length of 1.44 cm."]
["Mammals","Food consumption, alpha parameter for allometric equation",0.23499999999999999,"BW(g),FC(g)","U.S. EPA/ORD 1993","Eq. 3-7 ,p. 3-6, all mammals"]
["Mammals","Food consumption, beta parameter for allometric equation",0.82199999999999995,"BW(g),FC(g)","U.S. EPA/ORD 1993","Eq. 3-7 ,p. 3-6, all mammals"]
["Carnivorous mammal","Body weight",5,"kg","U.S. EPA/ORD 1993","p. 2-221.  Central value for red fox with a range of 3 to 7 kg."]
["Carnivorous mammal","Kilocalories, alpha parameter for allometric equation",1.8939999999999999,"BW(g),KCal(kcal/day)","U.S. EPA/ORD 1993","p. 3-6, equation 3-11, carnivores"]
["Carnivorous mammal","Kilocalories, beta parameter for allometric equation",0.7,"BW(g),KCal(kcal/day)","U.S. EPA/ORD 1993","p. 3-6, equation 3-11, carnivores"]
["Carnivorous mammal","Water consumption, alpha parameter for allometric equation",9.9000000000000005E-2,"BW(kg),WC(L)","U.S. EPA/ORD 1993","Eq. 3-17, p. 3-10, all mammals"]
["Carnivorous mammal","Water consumption, beta parameter for allometric equation",0.9,"BW(kg), WC(L)","U.S. EPA/ORD 1993","Eq. 3-17, p. 3-10, all mammals"]
["Herbivorous/Omnivorous mammal","Food consumption, alpha parameter for allometric equation",0.57699999999999996,"BW(g),FC(g)","U.S. EPA/ORD 1993","Eq. 3-9, p. 3-6, equation for herbivores"]
["Herbivorous/Omnivorous mammal","Food consumption, beta parameter for allometric equation",0.72699999999999998,"BW(g),FC(g)","U.S. EPA/ORD 1993","Eq. 3-9, p. 3-6, equation for herbivores"]
["Herbivorous/Omnivorous mammal","Kilocalories, alpha parameter for allometric equation",1.518,"BW(g),KCal(kcal/day)","U.S. EPA/ORD 1993","p. 3-6, equation 3-10, herbivores"]
["Herbivorous/Omnivorous mammal","Kilocalories, beta parameter for allometric equation",0.73,"BW(g),KCal(kcal/day)","U.S. EPA/ORD 1993","p. 3-6, equation 3-10, herbivores"]
["Large Mammal","Body weight",70,"kg","Default","N/A"]
["Large Mammal","Kilocalories, alpha parameter for allometric equation",1.518,"BW(g),KCal(kcal/day)","U.S. EPA/ORD 1993","p. 3-6, Eq. 3-10, herbivores"]
["Large Mammal","Kilocalories, beta parameter for allometric equation",0.73,"BW(g),KCal(kcal/day)","U.S. EPA/ORD 1993","p. 3-6, Eq. 3-10, herbivores"]
["Large Mammal","Water consumption, alpha parameter for allometric equation",9.9000000000000005E-2,"BW(kg),WC(L)","U.S. EPA/ORD 1993","Eq. 3-17, p. 3-10, all mammals"]
["Large Mammal","Water consumption, beta parameter for allometric equation",0.9,"BW(kg), WC(L)","U.S. EPA/ORD 1993","Eq. 3-17, p. 3-10, all mammals"]
["Rabbit","Body weight",1.3,"kg","Default","N/A"]
["Rabbit","Surface Area, alpha parameter for allometric equation",0.11,"BW(g), KCal(kcal/day)","U.S. EPA/ORD 1993","N/A"]
["Rabbit","Surface Area, beta parameter for allometric equation",0.65,"BW(g), KCal(kcal/day)","U.S. EPA/ORD 1993","N/A"]
["Rodent","Food consumption, alpha parameter for allometric equation",0.621,"BW(g),FC(g)","U.S. EPA/ORD 1993","Eq. 3-8, p. 3-6, equation for rodents"]
["Rodent","Food consumption, beta parameter for allometric equation",0.56399999999999995,"BW(g),FC(g)","U.S. EPA/ORD 1993","Eq. 3-8,p. 3-6, equation for rodents"]
["Small Mammal","Body weight",0.02,"kg","Default","N/A"]
["Small Mammal","Caloric content (wet weight)",1.7,"kcal/g","U.S. EPA/ORD 1993","Table 4-1, p. 4-13"]
["Small Mammal","Food consumption, alpha parameter for allometric equation",0.621,"BW(g),FC(g)","U.S. EPA/ORD 1993","Eq. 3-8, p. 3-6, equation for rodents"]
["Small Mammal","Food consumption, beta parameter for allometric equation",0.58399999999999996,"BW(g),FC(g)","U.S. EPA/ORD 1993","Eq. 3-8, p. 3-6, equation for rodents"]
["Small Mammal","Kilocalories, alpha parameter for allometric equation",1.8939999999999999,"BW(g),KCal(kcal/day)","U.S. EPA/ORD 1993","p. 3-6, equation 3-11, carnivores"]
["Small Mammal","Kilocalories, beta parameter for allometric equation",0.7,"BW(g),KCal(kcal/day)","U.S. EPA/ORD 1993","p. 3-6, equation 3-11, carnivores"]
["Small Mammal","Surface Area, alpha parameter for allometric equation",0.11,"BW(kg),SA(m2)","U.S. EPA/ORD 1993","eq. 3-22, p. 3-14"]
["Small Mammal","Surface Area, beta parameter for allometric equation",0.65,"BW(kg),SA(m2)","U.S. EPA/ORD 1993","eq. 3-22, p. 3-14"]
["Small Mammal","Water consumption, alpha parameter for allometric equation",9.9000000000000005E-2,"BW(kg),WC(L)","U.S. EPA/ORD 1993","Eq. 3-17, p. 3-10, all mammals"]
["Small Mammal","Water consumption, beta parameter for allometric equation",0.9,"BW(kg),WC(L)","U.S. EPA/ORD 1993","Eq. 3-17, p. 3-10, all mammals"]
["Misc","Liquid adhering to skin",8.0000000000000002E-3,"mL/cm2","Mason and Johnson 1987","Weight of liquid adhering to surface of skin after a spill"]
["Misc","Dislodgeable residue as proportion",0.1,"none","Harris and Solomon 1992","Estimate of dislodgeable residue as a proportion of application rate shortly after application based on 2,4-D."]
["Standard Pond","Depth",1,"m","Default","Depth of pond"]
["Standard Pond","Surface Area",1000,"m^2","Default","Surface Area"]
["Standard Pond","Volume of Spill ",200,"gallons","Default","Volume of spill"]
["VegRR","Broadleaf/forage plants and small insects, central estimate",45,"mg chem/kg veg","Fletcher et al. 1994","Broadleaf/forage plants and small insects"]
["VegRR","Broadleaf/forage plants and small insects, lower range",15,"mg chem/kg veg","SERA 2007","Broadleaf/forage plants and small insects"]
["VegRR","Broadleaf/forage plants and small insects, upper range",135,"mg chem/kg veg","Fletcher et al. 1994","Broadleaf/forage plants and small insects"]
["VegRR","Fruits, pods, seeds, and large insects, central estimate",7,"mg chem/kg veg","Fletcher et al. 1994","Fruits, pods, seeds, and large insects"]
["VegRR","Fruits, pods, seeds, and large insects, lower range",3.2,"mg chem/kg veg","SERA 2007","Fruits, pods, seeds, and large insects"]
["VegRR","Fruits, pods, seeds, and large insects, upper range",15,"mg chem/kg veg","Fletcher et al. 1994","Fruits, pods, seeds, and large insects"]
["VegRR","GranBLT, central estimate",1.8,"mg chem/kg veg","SERA 2005","Broadleaf forage plants and contaminated insects after granular application"]
["VegRR","GranBLT, lower range",0.6,"mg chem/kg veg","SERA 2007","Broadleaf/forage plants after granular application"]
["VegRR","GranBLT, upper range",5.4,"mg chem/kg veg","SERA 2005","Broadleaf forage plants and contaminated insects after granular application"]
["VegRR","GranFRT, central estimate",0.28000000000000003,"mg chem/kg veg","SERA 2005","Fruit after granular application"]
["VegRR","GranFRT, lower range",0.13,"mg chem/kg veg","SERA 2007","Fruit after granular application"]
["VegRR","GranFRT, upper range",0.6,"mg chem/kg veg","SERA 2005","Fruit after granular application"]
["VegRR","GranSGT, central estimate",3.4,"mg chem/kg veg","SERA 2005","Short grass after granular application"]
["VegRR","GranSGT, lower range",1.2,"mg chem/kg veg","SERA 2005","Short grass after granular application"]
["VegRR","GranSGT, upper range",9.6,"mg chem/kg veg","SERA 2005","Short grass after granular application"]
["VegRR","GranTGT, central estimate",1.44,"mg chem/kg veg","SERA 2005","Tall grass after granular application"]
["VegRR","GranTGT, lower range",0.48,"mg chem/kg veg","SERA 2007","Tall grass after granular application"]
["VegRR","GranTGT, upper range",4.4000000000000004,"mg chem/kg veg","SERA 2005","Tall grass after granular application"]
["VegRR","Short grass, central estimate",85,"mg chem/kg veg","Fletcher et al. 1994","Short grass"]
["VegRR","Short grass, lower range",30,"mg chem/kg veg","Fletcher et al. 1994","Short grass"]
["VegRR","Short grass, upper range",240,"mg chem/kg veg","Fletcher et al. 1994","Short grass"]
["VegRR","Tall grass, central estimate",36,"mg chem/kg veg","Fletcher et al. 1994","Tall grass"]
["VegRR","Tall grass, lower range",12,"mg chem/kg veg","SERA 2007","Tall grass"]
["VegRR","Tall grass, upper range",110,"mg chem/kg veg","Fletcher et al. 1994","Tall grass"]
["VerRR","GranSGT, lower range",1.2,"mg chem/kg veg","SERA 2007","Short grass after granular application"]
["VerRR","Short grass, lower range",30,"mg chem/kg veg","SERA 2007","Short grass"]
["Worker","Body weight",70,"kg","ICRP 1975","p. 13"]
["Worker","Surface Area, Hands",840,"cm2","U.S. EPA/ORD 1992"," p. 8-11"]
["Worker","Surface Area, Lower legs",2070,"cm2","U.S. EPA/ORD 1992","p. 8-11"]

{"sheet":"A03","index":7,"n_rows":52,"n_cols":8,"rows_kept":52,"cut":false,"hidden":false,"merged":[[0,0,0,6]]}
["Consumption values used in worksheets"]
["Receptor","Item","Qualifier","Modifier","Value","Units"," Reference","Reference Note"]
["Adult Female","Fish","Amount","central estimate",0.01,"kg/day","U.S. EPA/ORD 1996","p. 10-51, average of means from four studies rounded to one significant place."]
["Adult Female","Fish","Amount","upper range",0.158,"kg/day","Ruffle et al. 1994","N/A"]
["Adult Female","Fruit","Proportion of body weight","central estimate",1.6800000000000001E-3,"kg fruit/kg bw/day","U.S. EPA/ORD 1996","Table 9-3, p. 9-11, mean value."]
["Adult Female","Fruit","Proportion of body weight","lower range",1.6800000000000001E-3,"kg fruit/kg bw/day","U.S. EPA/ORD 1996","Table 9-3, p. 9-11. The 5th percentile is given as zero.  For these worksheets, the central estimate is used for the lower bound."]
["Adult Female","Fruit","Proportion of body weight","upper range",1.244E-2,"kg fruit/kg bw/day","U.S. EPA/ORD 1996","Table 9-3, p. 9-11, 95th percentile value."]
["Adult Female","Vegetation, home grown","Proportion of body weight","central estimate",7.6000000000000004E-4,"kg veg/kg bw/day","U.S. EPA/ORD 1996","Table 12-15, p. 9-14, mean for individuals between 20 and 39 years old."]
["Adult Female","Vegetation, home grown","Proportion of body weight","lower range",8.0000000000000007E-5,"kg veg/kg bw/day","U.S. EPA/ORD 1996","Table 12-15, p. 9-14, 5th percentile for individuals between 20 and 39 years old."]
["Adult Female","Vegetation, home grown","Proportion of body weight","upper range",4.9199999999999999E-3,"kg veg/kg bw/day","U.S. EPA/ORD 1996","Table 12-15, p. 9-14, 95th percentile for individuals between 20 and 39 years old."]
["Adult Female","Vegetation","Amount","Extreme",0.45400000000000001,"kg food","U.S. EPA/ORD 1996","1 lb.  The approximate mid range of the above typical and upper limits based on the 64 kg body weight."]
["Adult Female","Vegetation","Proportion of body weight","central estimate",3.5999999999999999E-3,"kg veg/kg bw/day","U.S. EPA/ORD 1996","Table 9-12, p. 9-12, mean."]
["Adult Female","Vegetation","Proportion of body weight","lower range",7.5000000000000002E-4,"kg veg/kg bw/day","U.S. EPA/ORD 1996","Table 9-12, p. 9-12, 5th percentile."]
["Adult Female","Vegetation","Proportion of body weight","upper range",0.01,"kg veg/kg bw/day","U.S. EPA/ORD 1996","Table 9-12, p. 9-12, 95th percentile."]
["Adult Female","Water","Amount","central estimate",2,"L/day","U.S. EPA/ORD 1996","p. 3-28, Table 3-30, midpoint of mean (1.4 L/day) and 90th percentile (2.4 L/day) rounded to one significant place."]
["Adult Female","Water","Amount","lower range",1.4,"L/day","U.S. EPA/ORD 1996","p. 3-28, Table 3-30, mean"]
["Adult Female","Water","Amount","upper range",2.4,"L/day","U.S. EPA/ORD 1996","p. 3-28, Table 3-30, 90th percentile"]
["Adult Male","Fish","Amount","central estimate",0.01,"kg/day","U.S. EPA/ORD 1996","p. 10-51, average of means from four studies rounded to one significant place."]
["Adult Male","Fish","Amount","upper range",0.158,"kg/day","Ruffle et al. 1994","N/A"]
["Adult Male","Fruit","Proportion of body weight","central estimate",1.6800000000000001E-3,"unitless","U.S. EPA/ORD 1996","Table 9-3, p. 9-11, mean value."]
["Adult Male","Fruit","Proportion of body weight","lower range",1.6800000000000001E-3,"unitless","U.S. EPA/ORD 1996","Table 9-3, p. 9-11. The 5th percentile is given as zero.  For these worksheets, the central estimate is used for the lower bound."]
["Adult Male","Fruit","Proportion of body weight","upper range",1.244E-2,"unitless","U.S. EPA/ORD 1996","Table 9-3, p. 9-11, 95th percentile value."]
["Adult Male","Vegetation, home grown","Proportion of body weight","central estimate",7.6000000000000004E-4,"unitless","U.S. EPA/ORD 1996","Table 12-15, p. 9-14, mean for individuals between 20 and 39 years old."]
["Adult Male","Vegetation, home grown","Proportion of body weight","lower range",8.0000000000000007E-5,"unitless","U.S. EPA/ORD 1996","Table 12-15, p. 9-14, 5th percentile for individuals between 20 and 39 years old."]
["Adult Male","Vegetation, home grown","Proportion of body weight","upper range",4.9199999999999999E-3,"unitless","U.S. EPA/ORD 1996","Table 12-15, p. 9-14, 95th percentile for individuals between 20 and 39 years old."]
["Adult Male","Vegetation","Amount","Extreme",0.45400000000000001,"kg/day","U.S. EPA/ORD 1996","1 lb.  The approximate mid range of the above typical and upper limits based on the 64 kg body weight."]
["Adult Male","Vegetation","Proportion of body weight","central estimate",3.5999999999999999E-3,"unitless","U.S. EPA/ORD 1996","Table 9-12, p. 9-12, mean."]
["Adult Male","Vegetation","Proportion of body weight","lower range",7.5000000000000002E-4,"unitless","U.S. EPA/ORD 1996","Table 9-12, p. 9-12, 5th percentile."]
["Adult Male","Vegetation","Proportion of body weight","upper range",0.01,"unitless","U.S. EPA/ORD 1996","Table 9-12, p. 9-12, 95th percentile."]
["Adult Male","Water","Amount","central estimate",2,"L/day","U.S. EPA/ORD 1996","p. 3-28, Table 3-30, midpoint of mean (1.4 L/day) and 90th percentile (2.4 L/day) rounded to one significant place."]
["Adult Male","Water","Amount","lower range",1.4,"L/day","U.S. EPA/ORD 1996","p. 3-28, Table 3-30, mean"]
["Adult Male","Water","Amount","upper range",2.4,"L/day","U.S. EPA/ORD 1996","p. 3-28, Table 3-30, 90th percentile"]
["Subsistence Populations","Fish","Amount","central estimate",8.1000000000000003E-2,"kg/day","U.S. EPA/ORD 1996","p. 10-51, median value of 94 individuals"]
["Subsistence Populations","Fish","Amount","upper range",0.77,"kg/day","U.S. EPA/ORD 1996","p. 10-51, highest value of 94 individuals"]
["Fish-eating bird","Fish","Proportion of body weight","central estimate",0.1,"unitless","U.S. EPA/ORD 1993","various species."]
["Fish-eating bird","Fish","Proportion of body weight","lower range",0.05,"unitless","U.S. EPA/ORD 1993","various species."]
["Fish-eating bird","Fish","Proportion of body weight","upper range",0.15,"unitless","U.S. EPA/ORD 1993","various species."]
["Child","Water","Amount","central estimate",1,"L/day","U.S. EPA/ORD 1996","p. 3-28, Table 3-30, midpoint of mean (0.61L/day) and 90th percentile (1.5 L/day) rounded to one significant place."]
["Child","Water","Amount","lower range",0.61,"L/day","U.S. EPA/ORD 1996","p. 3-28, Table 3-30, mean"]
["Child","Water","Amount","upper range",1.5,"L/day","U.S. EPA/ORD 1996","p. 3-28, Table 3-30, 90th percentile"]
["Herbivorous Insect","Broadleaf/Small Insects","Proportion of body weight","central estimate",1.3,"kg food/kg bw/day","Waldbauer 1968","N/A"]
["Herbivorous Insect","Broadleaf/Small Insects","Proportion of body weight","lower range",0.6,"kg food/kg bw/day","Reichle et al. 1973","N/A"]
["Herbivorous Insect","Broadleaf/Small Insects","Proportion of body weight","upper range",2.2000000000000002,"kg food/kg bw/day","Waldbauer 1968","N/A"]
["Herbivorous Insect","Fruit/Large Insects","Proportion of body weight","central estimate",1.3,"kg food/kg bw/day","Waldbauer 1968","N/A"]
["Herbivorous Insect","Fruit/Large Insects","Proportion of body weight","lower range",0.6,"kg food/kg bw/day","Reichle et al. 1973","N/A"]
["Herbivorous Insect","Fruit/Large Insects","Proportion of body weight","upper range",2.2000000000000002,"kg food/kg bw/day","Waldbauer 1968","N/A"]
["Herbivorous Insect","Short grass","Proportion of body weight","central estimate",1.3,"kg food/kg bw/day","Waldbauer 1968","N/A"]
["Herbivorous Insect","Short grass","Proportion of body weight","lower range",0.6,"kg food/kg bw/day","Reichle et al. 1973","N/A"]
["Herbivorous Insect","Short grass","Proportion of body weight","upper range",2.2000000000000002,"kg food/kg bw/day","Waldbauer 1968","N/A"]
["Herbivorous Insect","Tall Grass","Proportion of body weight","central estimate",1.3,"kg food/kg bw/day","Waldbauer 1968","N/A"]
["Herbivorous Insect","Tall Grass","Proportion of body weight","lower range",0.6,"kg food/kg bw/day","Reichle et al. 1973","N/A"]
["Herbivorous Insect","Tall Grass","Proportion of body weight","upper range",2.2000000000000002,"kg food/kg bw/day","Waldbauer 1968","N/A"]

{"sheet":"B01","index":8,"n_rows":21,"n_cols":5,"rows_kept":21,"cut":false,"hidden":false,"merged":[[0,0,0,4]]}
["Chemical and Physical Properties for  Emamectin benzoate "]
["Property","Receptor","Value","Units","Document Reference"]
["Bioconcentration Factor (BCF), edible, acute","N/A",30,"L/kg fish","Table 2"]
["Bioconcentration Factor (BCF), edible, chronic","N/A",30,"L/kg fish","Table 2"]
["Bioconcentration Factor (BCF), whole fish, acute","N/A",80,"L/kg fish","Table 2"]
["Bioconcentration Factor (BCF), whole fish, chronic","N/A",80,"L/kg fish","Table 2"]
["Kow (Octanol-water partition coefficient)","N/A",100000,"unitless","Table 2"]
["Molecular weight","N/A",886.1,"grams/mole","Table 2"]
["Water Solubility","N/A",2.4E-2,"mg/L","Table 2"]
["First order dermal absorption rate (ka), central estimate","N/A",7.5000000000000002E-4,"per hour","Section 3.2.2.2.1"]
["First order dermal absorption rate (ka), lower range","N/A",7.5000000000000002E-4,"per hour","Section 3.2.2.2.1"]
["First order dermal absorption rate (ka), upper range","N/A",7.5000000000000002E-4,"per hour","Section 3.2.2.2.1"]
["Dermal permeability (Kp), central estimate","N/A",3.2000000000000003E-4,"cm/hour","Section 3.2.2.2.2"]
["Dermal permeability (Kp), lower range","N/A",9.2E-5,"cm/hour","Section 3.2.2.2.2"]
["Dermal permeability (Kp), upper range","N/A",1E-3,"cm/hour","Section 3.2.2.2.2"]
["Halftime, central estimate","Fruit",0.6,"days","Section 3.2.3.6 "]
["Halftime, lower range","Fruit",0.6,"days","Section 3.2.3.6 "]
["Halftime, upper range","Fruit",0.6,"days","Section 3.2.3.6 "]
["Halftime, central estimate","Vegetation",0.6,"days","Section 3.2.3.6 "]
["Halftime, lower range","Vegetation",0.6,"days","Section 3.2.3.6 "]
["Halftime, upper range","Vegetation",0.6,"days","Section 3.2.3.6 "]

{"sheet":"B02","index":9,"n_rows":20,"n_cols":7,"rows_kept":20,"cut":false,"hidden":false,"merged":[[0,0,0,6]]}
["Toxicity values for  Emamectin benzoate "]
["Receptor","Receptor","Qualifier","Endpoint","Value","Units","Document Reference"]
["Human","acute","N/A","Reference Dose (RfD)",2.5000000000000001E-4,"mg/kg bw","Section 3.3.2."]
["Human","chronic","N/A","Reference Dose (RfD)",7.4999999999999993E-5,"mg/kg bw/day","Section 3.3.3."]
["Mammals","acute","N/A","NOAEL",7.4999999999999997E-2,"mg/kg bw","Table 11"]
["Mammals","chronic","N/A","NOAEL",7.4999999999999997E-2,"mg/kg bw/day","Table 11"]
["Birds","acute","N/A","NOAEL",4.5999999999999996,"mg/kg bw","Table 11"]
["Birds","chronic","N/A","NOAEL",2.8,"mg/kg bw/day","Table 11"]
["Herbivorous Insect","acute","Oral, Sensitve","NOEC",1.0000000000000001E-5,"mg/kg bw","Table 11"]
["Herbivorous Insect","acute","Oral, Tolerant","NOEC",8.0000000000000002E-3,"mg/kg bw","Table 11"]
["Fish","acute","sensitive species","NOAEC*",8.6999999999999994E-3,"mg/L","Table 11"]
["Fish","acute","tolerant species","NOAEC*",7.1999999999999995E-2,"mg/L","Table 11"]
["Fish","chronic","sensitive species","NOAEC*",6.4999999999999997E-3,"mg/L","Table 11"]
["Fish","chronic","tolerant species","NOAEC*",5.2999999999999999E-2,"mg/L","Table 11"]
["Aquatic invertebrate","acute","sensitive species","NOAEC*",1.9999999999999999E-6,"mg/L","Table 11"]
["Aquatic invertebrate","chronic","sensitive species","NOAEC*",1.9999999999999999E-6,"mg/L","Table 11"]
["Aquatic invertebrate","acute","tolerant species","NOAEC*",2.5000000000000001E-2,"mg/L","Table 11"]
["Aquatic invertebrate","chronic","tolerant species","NOAEC*",2.5000000000000001E-2,"mg/L","Table 11"]
["Aquatic algae","acute","general","NOAEC*",3.8999999999999998E-3,"mg/L","Table 11"]
["Aquatic macrophyte","acute","general","NOAEC*",9.4E-2,"mg/L","Table 11"]

{"sheet":"B03","index":10,"n_rows":10,"n_cols":5,"rows_kept":10,"cut":false,"hidden":false,"merged":[[0,0,0,4],[2,0,5,0],[6,0,9,0]]}
["Summary of chemical specific dermal absorption values"]
["Parameter/Assumption","Code / Range","Equation/ Value","Units","DermSum"]
["Zero-Order absorption rate","Kp"]
[null,"Central ",{"$f":"'B01'!$C$13","v":3.2000000000000003E-4},"cm/hour","Section 3.2.2.2"]
[null,"Lower ",{"$f":"'B01'!$C$14","v":9.2E-5},null,"Section 3.2.2.2"]
[null,"Upper ",{"$f":"'B01'!$C$15","v":1E-3},null,"Section 3.2.2.2"]
["First-Order absorption rate","ka"]
[null,"Central ",{"$f":"'B01'!C10","v":7.5000000000000002E-4},"hour-1","Section 3.2.2.2"]
[null,"Lower ",{"$f":"'B01'!C11","v":7.5000000000000002E-4},null,"Section 3.2.2.2"]
[null,"Upper ",{"$f":"'B01'!C12","v":7.5000000000000002E-4},null,"Section 3.2.2.2"]

{"sheet":"B05","index":11,"n_rows":28,"n_cols":5,"rows_kept":28,"cut":false,"hidden":false,"merged":[[24,0,27,0],[0,0,0,4],[1,1,1,3],[5,0,7,0],[9,0,12,0],[20,0,23,0]]}
["Calculation of Zero-Order Dermal Permeability Rate (Kp) in cm/hour using MW and Kow for Emamectin benzoate."]
["Short Title","Calculation of Kp"]
["Parameter/Assumption","Code / Range","Equation/   Value","Units","Reference/Designation"]
["Molecular weight","MW",{"$f":"'B06'!C4","v":886.1},"g/mole","Section 3.1.3.2.2"]
["Ko/w","Kow",{"$f":"'B06'!C5","v":100000},"unitless","Section 3.1.3.2.2"]
["Vector a[]","a[1]",1]
[null,"a[2]",{"$f":"C4","v":886.1}]
[null,"a[3]",{"$f":"LOG10(C5)","v":5}]
["Transpose of a[] (a')",{"$f":"$C$6","v":1},{"$f":"$C$7","v":886.1},{"$f":"$C$8","v":5}]
["X'X Cross Product Matrix","X'X"]
[null,5.5931000000000002E-2,-9.4154599999999995E-5,-1.0344300000000001E-2]
[null,-9.4154599999999995E-5,5.9780000000000002E-7,-2.22508E-5]
[null,-1.0344300000000001E-2,-2.22508E-5,7.40677E-3]
["a'X'X a","a'X'X a",{"$f":"MMULT(B9:D9,MMULT(B11:D13, C6:C8))","v":0.24300867401800003}]
["Coefficients for model"]
["Intercept","K0",-2.7257600000000002]
["Coeff for Log10(Kow)","K1",0.70664800000000005]
["Coeff for MW","K2",-6.1510000000000002E-3]
["Standard deviation of model","s",0.72712900000000003]
["Critical value at 0.025 with 87 d.f.","t0.025",1.96]
["Log10 of Estimated dermal permeability rate (Kp)","Log(Kp) = ","K1  MW × K2 Log10(Kow) + K0"]
[null,"Central",{"$f":"($C$18*$C$4) + ($C$17*LOG10($C$5)) + $C$16","v":-4.6429211000000006},null,"Eq"]
[null,"Lower 95% CI",{"$f":"$C$22 - ($C$20 * $C$19 * ($C$14^0.5))","v":-5.34547302018251},null,"Eq"]
[null,"Upper 95% CI",{"$f":"$C$22 + ($C$20 * $C$19 * ($C$14^0.5))","v":-3.9403691798174916},null,"Eq"]
["Estimated dermal permeability rate (Kp)","Kp = ","10Log(Kp)"]
[null,"Central",{"$f":"10^C22","v":2.2755107942879869E-5},"cm/hour","Eq"]
[null,"Lower 95% CI",{"$f":"10^C23","v":4.513640647067362E-6},null,"Eq"]
[null,"Upper 95% CI",{"$f":"10^C24","v":1.1471780276272979E-4},null,"Eq"]

{"sheet":"B05-Alt","index":12,"n_rows":28,"n_cols":5,"rows_kept":28,"cut":false,"hidden":false,"merged":[[24,0,27,0],[0,0,0,4],[1,1,1,3],[5,0,7,0],[9,0,12,0],[20,0,23,0]]}
["Calculation of Zero-Order Dermal Permeability Rate (Kp) in cm/hour using Kow for Emamectin benzoate but Upper Bound MW of 700 g/mole."]
["Short Title","Calculation of Kp"]
["Parameter/Assumption","Code / Range","Equation/   Value","Units","Reference/Designation"]
["Molecular weight","MW",700,"g/mole","Section 3.1.3.2.2"]
["Ko/w","Kow",{"$f":"'B06'!C5","v":100000},"unitless","Section 3.1.3.2.2"]
["Vector a[]","a[1]",1]
[null,"a[2]",{"$f":"C4","v":700}]
[null,"a[3]",{"$f":"LOG10(C5)","v":5}]
["Transpose of a[] (a')",{"$f":"$C$6","v":1},{"$f":"$C$7","v":700},{"$f":"$C$8","v":5}]
["X'X Cross Product Matrix","X'X"]
[null,5.5931000000000002E-2,-9.4154599999999995E-5,-1.0344300000000001E-2]
[null,-9.4154599999999995E-5,5.9780000000000002E-7,-2.22508E-5]
[null,-1.0344300000000001E-2,-2.22508E-5,7.40677E-3]
["a'X'X a","a'X'X a",{"$f":"MMULT(B9:D9,MMULT(B11:D13, C6:C8))","v":0.14300721}]
["Coefficients for model"]
["Intercept","K0",-2.7257600000000002]
["Coeff for Log10(Kow)","K1",0.70664800000000005]
["Coeff for MW","K2",-6.1510000000000002E-3]
["Standard deviation of model","s",0.72712900000000003]
["Critical value at 0.025 with 87 d.f.","t0.025",1.96]
["Log10 of Estimated dermal permeability rate (Kp)","Log(Kp) = ","K1  MW × K2 Log10(Kow) + K0"]
[null,"Central",{"$f":"($C$18*$C$4) + ($C$17*LOG10($C$5)) + $C$16","v":-3.4982199999999999},null,"Eq"]
[null,"Lower 95% CI",{"$f":"$C$22 - ($C$20 * $C$19 * ($C$14^0.5))","v":-4.0371675527099109},null,"Eq"]
[null,"Upper 95% CI",{"$f":"$C$22 + ($C$20 * $C$19 * ($C$14^0.5))","v":-2.9592724472900889},null,"Eq"]
["Estimated dermal permeability rate (Kp)","Kp = ","10Log(Kp)"]
[null,"Central",{"$f":"10^C22","v":3.1752651731597168E-4},"cm/hour","Eq"]
[null,"Lower 95% CI",{"$f":"10^C23","v":9.1797836808861071E-5},null,"Eq"]
[null,"Upper 95% CI",{"$f":"10^C24","v":1.0983166129365461E-3},null,"Eq"]

{"sheet":"B06","index":13,"n_rows":40,"n_cols":5,"rows_kept":40,"cut":false,"hidden":false,"merged":[[20,0,23,0],[24,0,27,0],[9,0,12,0],[0,0,0,4],[1,1,1,3],[5,0,7,0]]}
["Calculation of First-Order Dermal Absorption Rate using MW and Kow for Emamectin benzoate."]
["Short Title","Calculation of ka"]
["Parameter/Assumption","Code / Range","Equation/   Value","Units","Reference/Designation"]
["Molecular weight","MW",886.1,"g/mole","Section 3.1.3.2.1."]
["Ko/w","Kow",100000,"unitless","Section 3.1.3.2.1."]
["Vector a[]","a[1]",1]
[null,"a[2]",{"$f":"C4","v":886.1}]
[null,"a[3]",{"$f":"LOG10(C5)","v":5}]
["Transpose of a[] (a')",{"$f":"$C$6","v":1},{"$f":"$C$7","v":886.1},{"$f":"$C$8","v":5}]
["X'X Cross Product Matrix","X'X"]
[null,0.307537,-1.03089E-3,8.2276899999999993E-3]
[null,-1.03089E-3,4.3769999999999998E-6,-9.4435899999999995E-5]
[null,8.2276899999999993E-3,-9.4435899999999995E-5,8.5286000000000008E-3]
["a'X'X a","a'X'X a",{"$f":"MMULT(B9:D9,MMULT(B11:D13, C6:C8))","v":1.37599227227}]
["Coefficients for model"]
["Intercept","K0",-1.4961500000000001]
["Coeff for Log10(Kow)","K1",0.23325499999999999]
["Coeff for MW","K2",-5.6569999999999997E-3]
["Standard deviation of model","s",0.78721799999999997]
["Critical value at 0.025 with 26 d.f.","t0.025",2.056]
["Log10 of Estimated first-order absorption rate","Log(ka) = ","K1  MW × K2 Log10(Kow) + K0"]
[null,"Central",{"$f":"($C$18*$C$4) + ($C$17*LOG10($C$5)) + $C$16","v":-5.3425427000000001},null,"Eq"]
[null,"Lower 95% CI",{"$f":"$C$22 - ($C$20 * $C$19 * ($C$14^0.5))","v":-7.2411105554206259},null,"Eq"]
[null,"Upper 95% CI",{"$f":"$C$22 + ($C$20 * $C$19 * ($C$14^0.5))","v":-3.4439748445793743},null,"Eq"]
["Estimated first-order absorption rate","ka = ","10Log(ka)"]
[null,"Central",{"$f":"10^C22","v":4.5441985627849473E-6},"hour-1","Eq"]
[null,"Lower 95% CI",{"$f":"10^C23","v":5.7397033184758759E-8},null,"Eq"]
[null,"Upper 95% CI",{"$f":"10^C24","v":3.5977017333885724E-4},null,"Eq"]
[null,null,"1-exp(-ka T)"]
["Prop for 24-h","Central",{"$f":"1-EXP(-C26*24)","v":1.0905481859779798E-4}]
[null,"Lower 95% CI",{"$f":"1-EXP(-C27*24)","v":1.3775278476790831E-6}]
[null,"Upper 95% CI",{"$f":"1-EXP(-C28*24)","v":8.5973140602562115E-3}]
[]
["Rates per day",null,"Hourx24"]
[null,"Central",{"$f":"C26*24","v":1.0906076550683873E-4},"day-1"]
[null,"Lower 95% CI",{"$f":"C27*24","v":1.3775287964342103E-6}]
[null,"Upper 95% CI",{"$f":"C28*24","v":8.6344841601325734E-3}]
[]
[null,"Experimental",1.7999999999999999E-2,"day-1"]
[null,"Exp/QSAR_C",{"$f":"ROUND(C39/ROUND(C35,5),0)","v":164}]

{"sheet":"B06-Alt","index":14,"n_rows":37,"n_cols":5,"rows_kept":37,"cut":false,"hidden":false,"merged":[[24,0,27,0],[0,0,0,4],[1,1,1,3],[5,0,7,0],[9,0,12,0],[20,0,23,0]]}
["Calculation of First-Order Dermal Absorption Rate using Kow for Emamectin benzoate but upper bound MW of 400 g/mole."]
["Short Title","Calculation of ka"]
["Parameter/Assumption","Code / Range","Equation/   Value","Units","Reference/Designation"]
["Molecular weight","MW",400,"g/mole","Section 3.1.3.2.1."]
["Ko/w","Kow",100000,"unitless","Section 3.1.3.2.1."]
["Vector a[]","a[1]",1]
[null,"a[2]",{"$f":"C4","v":400}]
[null,"a[3]",{"$f":"LOG10(C5)","v":5}]
["Transpose of a[] (a')",{"$f":"$C$6","v":1},{"$f":"$C$7","v":400},{"$f":"$C$8","v":5}]
["X'X Cross Product Matrix","X'X"]
[null,0.307537,-1.03089E-3,8.2276899999999993E-3]
[null,-1.03089E-3,4.3769999999999998E-6,-9.4435899999999995E-5]
[null,8.2276899999999993E-3,-9.4435899999999995E-5,8.5286000000000008E-3]
["a'X'X a","a'X'X a",{"$f":"MMULT(B9:D9,MMULT(B11:D13, C6:C8))","v":0.10089329999999994}]
["Coefficients for model"]
["Intercept","K0",-1.4961500000000001]
["Coeff for Log10(Kow)","K1",0.23325499999999999]
["Coeff for MW","K2",-5.6569999999999997E-3]
["Standard deviation of model","s",0.78721799999999997]
["Critical value at 0.025 with 26 d.f.","t0.025",2.056]
["Log10 of Estimated first-order absorption rate","Log(ka) = ","K1  MW × K2 Log10(Kow) + K0"]
[null,"Central",{"$f":"($C$18*$C$4) + ($C$17*LOG10($C$5)) + $C$16","v":-2.5926749999999998},null,"Eq"]
[null,"Lower 95% CI",{"$f":"$C$22 - ($C$20 * $C$19 * ($C$14^0.5))","v":-3.1067769956160678},null,"Eq"]
[null,"Upper 95% CI",{"$f":"$C$22 + ($C$20 * $C$19 * ($C$14^0.5))","v":-2.0785730043839319},null,"Eq"]
["Estimated first-order absorption rate","ka = ","10Log(ka)"]
[null,"Central",{"$f":"10^C22","v":2.5546123065015923E-3},"hour-1","Eq"]
[null,"Lower 95% CI",{"$f":"10^C23","v":7.8202926303175171E-4},null,"Eq"]
[null,"Upper 95% CI",{"$f":"10^C24","v":8.3450125782114255E-3},null,"Eq"]
[null,null,"1-exp(-ka T)"]
["Prop for 24-h","Central",{"$f":"1-EXP(-C26*24)","v":5.9469024230555667E-2}]
[null,"Lower 95% CI",{"$f":"1-EXP(-C27*24)","v":1.8593666992047009E-2}]
[null,"Upper 95% CI",0.18149870652844269]
[]
["Rates per day",null,"Hourx24"]
[null,"Central",{"$f":"C26*24","v":6.1310695356038211E-2},"day-1"]
[null,"Lower 95% CI",{"$f":"C27*24","v":1.876870231276204E-2}]
[null,"Upper 95% CI",0.20028030187707421]

{"sheet":"B07","index":15,"n_rows":33,"n_cols":15,"rows_kept":33,"cut":false,"hidden":false,"merged":[[5,2,5,4],[5,5,5,7],[5,12,5,14]]}
["Calculations for Emamectin benzoate dosing and concentrations in leaves."]
[]
[null,"Dosing for ash trees by DBH",null,null,null,null,null,null,null,null,"Estimated concentrations of emamectin benzoate in ash trees."]
[null,"The dosing information below is taken from the Tree-äge Label at the Arborject Web Site",null,null,null,null,null,null,null,null,null,"The ash tree weight is estimated from the allometric equation from Ter-Mikaelian and Korzukhin (1997). "]
[null,null,null,null,null,null,null,null,null,null,null,"alpha",0.10630000000000001,"beta",2.4798]
[null,null,"Dose as mL Per Tree",null,null,"Dose as mg a,i.per Tree",null,null,null,null,null,null,"Concentration in Whole Ash Trees  (mg/kg)"]
[null,"Mid-PointDBH (Inches)","Low Dose","Medium Dose","HighDose","Low Dose","Medium Dose","HighDose",null,null,"Mid-PointDBH (cm)","Tree Dry Weight (kg)","Low Dose","Medium Dose","HighDose"]
[null,5,15,25,null,{"$f":"C8*$D$32*$D$33*1000","v":648.00000000000011},{"$f":"D8*$D$32*$D$33*1000","v":1080},null,null,null,{"$f":"2.54*B8","v":12.7},{"$f":"$M$5 * K8^$O$5","v":58.042449440857908},{"$f":"F8/$L8","v":11.164242829901188},18.607071383168645]
[null,8,20,40,null,{"$f":"C9*$D$32*$D$33*1000","v":864.00000000000011},1728.0000000000002,null,null,null,{"$f":"2.54*B9","v":20.32},{"$f":"$M$5 * K9^$O$5","v":186.17547250642161},4.6407831728220739,9.2815663456441477]
[null,12,30,55,165,1296.0000000000002,2376.0000000000005,7128.0000000000009,null,null,30.48,508.8544407591308,2.5468972975190547,4.669311712118267,{"$f":"H10/$L10","v":14.007935136354801}]
[null,14,35,70,210,1512.0000000000002,3024.0000000000005,9072.0000000000018,null,null,35.56,745.77568190216232,2.027419285305093,4.0548385706101859,12.164515711830559]
[null,17,40,75,225,1728.0000000000002,3240,9720,null,null,43.18,1206.9996668657964,1.4316491109621265,2.6843420830539868,8.0530262491619613]
[null,20,50,100,300,2160,4320,12960,null,null,50.8,1806.0680016723054,1.1959682570091357,2.3919365140182713,7.1758095420548145]
[null,23,null,115,345,null,4968,14904.000000000002,null,null,58.42,2554.1864860292085,null,{"$f":"G14/$L14","v":1.9450420034612885},5.835126010383866]
[null,26,null,130,390,null,5616.0000000000009,16848.000000000004,null,null,66.040000000000006,3461.7111211514534,null,1.6223190796267182,4.866957238880155]
[null,29,null,145,435,null,6264.0000000000009,18792,null,null,73.66,4538.3132615355444,null,1.3802484841869571,4.1407454525608713]
[null,32,null,160,480,null,6912.0000000000009,20736.000000000004,null,null,81.28,5793.0974111057621,null,1.1931441005547785,3.5794323016643359]
[null,36,null,175,525,null,7560.0000000000009,22680,null,null,91.44,7758.1622221635025,null,0.97445758202923471,2.9233727460877037]
[null,38,null,190,570,null,8208,24624.000000000004,null,null,96.52,8871.3002429577937,null,0.92523077510714014,2.7756923253214207]
[null,41,null,205,615,null,8856,26568,null,null,104.14,10710.78552244608,null,0.8268301126412162,2.4804903379236487]
[null,44,null,220,660,null,9504.0000000000018,28512.000000000004,null,null,111.76,12760.681297514677,null,0.74478781958538842,2.2343634587561652]
[null,47,null,235,705,null,10152.000000000002,30456.000000000004,null,null,119.38,15028.242111022266,null,0.67552811067331364,2.0265843320199406]
[null,50,null,250,750,null,10800,32400,null,null,127,17520.469172178895,null,0.61642184885947782,1.8492655465784336]
[null,53,null,265,795,null,11448.000000000002,34344,null,null,134.62,20244.134610853496,null,0.56549712892456172,1.6964913867736848]
[null,56,null,280,840,null,{"$f":"D25*$D$32*$D$33*1000","v":12096.000000000002},36288.000000000007,null,null,142.24,23205.802106633699,null,0.52124895077607303,1.5637468523282194]
[null,59,null,295,885,null,12744.000000000002,38232.000000000007,null,null,149.86000000000001,26411.844607779458,null,0.48251078973281286,1.4475323691984388]
[null,62,null,310,930,null,13392.000000000002,40176,null,null,157.47999999999999,29868.45968353526,null,0.4483659399209739,1.3450978197629215]
[null,65,null,325,975,null,14040.000000000002,42120,null,null,165.1,33581.6829294157,null,0.41808506230942161,1.2542551869282645]
[null,68,null,340,1020,null,14688.000000000002,44064.000000000007,null,null,172.72,37557.399754065729,null,0.391081387321282,1.1732441619638461]
[null,71,null,355,1065,null,15336.000000000002,46008,null,null,180.34,41801.35580830121,null,0.36687805224141723,1.1006341567242517]
[]
[null,null,"Density:",1.08,"g/mL"]
[null,null,"a.i.:",0.04,"w/w"]

{"sheet":"C01a","index":16,"n_rows":21,"n_cols":5,"rows_kept":21,"cut":false,"hidden":false,"merged":[[0,0,0,4],[1,1,1,3],[2,1,2,3],[3,1,3,3],[17,0,20,0],[5,0,8,0],[9,0,12,0],[10,3,12,3],[13,0,16,0],[14,3,16,3]]}
["Exposure estimates for Workers based on Standard Forest Service Methods with PPE"]
["Short Title","General exposure",null,null,"WkGenExp"]
["Receptor","Backpack Worker",null,null,"Worksheet A01"]
["Duration","Chronic"]
["Parameter/Assumption","Code / Range","Equation/ Value","Units","Reference/Equation"]
["Amount handled per day: ","Amnt"]
[null,"Central ",{"$f":"'A01'!C9","v":0.27199999999999996},"lb/day","Worksheet A01"]
[null,"Lower ",{"$f":"'A01'!C10","v":0.13599999999999998},null,"Worksheet A01"]
[null,"Upper ",{"$f":"'A01'!C11","v":0.54399999999999993},null,"Worksheet A01"]
["Absorbed dose rate:","ADR"]
[null,"Central ",{"$f":"[1]A01!C$67","v":3.0000000000000001E-3},"(mg agent/kg bw) ÷ (lbs agent handled per day)","Section 3.2.2.1"]
[null,"Lower ",{"$f":"[1]A01!C$68","v":2.9999999999999997E-4},null,"Section 3.2.2.1"]
[null,"Upper ",{"$f":"[1]A01!C$69","v":0.01},null,"Section 3.2.2.1"]
["Clothing Protection Factor","Prot"]
[null,"Central ",0.99219999999999997,"Unitless (value between 0 [no protection] and 1 [complete protection])","Section 3.2.2.1"]
[null,"Upper ",0.99219999999999997,null,"Section 3.2.2.1"]
[null,"Lower ",0.99219999999999997,null,"Section 3.2.2.1"]
["Absorbed dose","Dose","Amnt × ADR  × (1-Prot)"]
[null,"Central ",{"$f":"C7*C11*(1-C15)","v":6.3648000000000225E-6},"mg/kg bw/day","Eq"]
[null,"Lower ",{"$f":"C8*C12*(1-C16)","v":3.1824000000000108E-7},null,"Eq"]
[null,"Upper ",{"$f":"C9*C13*(1-C17)","v":4.2432000000000152E-5},null,"Eq"]

{"sheet":"C01a-Sup","index":17,"n_rows":21,"n_cols":5,"rows_kept":21,"cut":false,"hidden":false,"merged":[[13,0,16,0],[14,3,16,3],[17,0,20,0],[0,0,0,4],[1,1,1,3],[2,1,2,3],[3,1,3,3],[5,0,8,0],[9,0,12,0],[10,3,12,3]]}
["Exposure estimates for Workers based on Standard Forest Service Methods Without PPE"]
["Short Title","General exposure",null,null,"WkGenExp"]
["Receptor","Backpack Worker",null,null,"Worksheet A01"]
["Duration","Chronic"]
["Parameter/Assumption","Code / Range","Equation/ Value","Units","Reference/Equation"]
["Amount handled per day: ","Amnt"]
[null,"Central ",{"$f":"'A01'!C9","v":0.27199999999999996},"lb/day","Worksheet A01"]
[null,"Lower ",{"$f":"'A01'!C10","v":0.13599999999999998},null,"Worksheet A01"]
[null,"Upper ",{"$f":"'A01'!C11","v":0.54399999999999993},null,"Worksheet A01"]
["Absorbed dose rate:","ADR"]
[null,"Central ",{"$f":"[1]A01!C$67","v":3.0000000000000001E-3},"(mg agent/kg bw) ÷ (lbs agent handled per day)","Section 3.2.2.1"]
[null,"Lower ",{"$f":"[1]A01!C$68","v":2.9999999999999997E-4},null,"Section 3.2.2.1"]
[null,"Upper ",{"$f":"[1]A01!C$69","v":0.01},null,"Section 3.2.2.1"]
["Clothing Protection Factor","Prot"]
[null,"Central ",0,"Unitless (value between 0 [no protection] and 1 [complete protection])","Section 3.2.2.1"]
[null,"Upper ",0,null,"Section 3.2.2.1"]
[null,"Lower ",0,null,"Section 3.2.2.1"]
["Absorbed dose","Dose","Amnt × ADR  × (1-Prot)"]
[null,"Central ",{"$f":"C7*C11*(1-C15)","v":8.1599999999999989E-4},"mg/kg bw/day","Eq"]
[null,"Lower ",{"$f":"C8*C12*(1-C16)","v":4.0799999999999989E-5},null,"Eq"]
[null,"Upper ",{"$f":"C9*C13*(1-C17)","v":5.4399999999999995E-3},null,"Eq"]

{"sheet":"C01b","index":18,"n_rows":47,"n_cols":5,"rows_kept":47,"cut":false,"hidden":false,"merged":[[26,0,29,0],[30,0,33,0],[34,0,37,0],[39,0,42,0],[43,0,46,0],[22,0,25,0],[0,0,0,4],[1,1,1,3],[2,1,2,3],[3,1,3,3],[6,0,9,0],[10,0,13,0],[11,3,13,3],[14,0,17,0],[18,0,21,0],[19,3,21,3]]}
["Exposure estimates based on Pesticide Handlers Exposure Database (PHED) Method With Gloves"]
["Short Title","General exposure",null,null,"Param->Short_Title"]
["Receptor","Worker"]
["Duration","Acute"]
["Parameter/Assumption","Code / Range","Equation/ Value","Units","Reference/Equation"]
["Body Weight","BW",70,null,"Scenario assumption"]
["Amount a.i. handled per day (a.e. for weak acids): ","Amnt","InjAmnt x Ninj"]
[null,"Central ",{"$f":"'A01'!C9","v":0.27199999999999996},"lb a.i.","Worksheet A01"]
[null,"Lower ",{"$f":"'A01'!C10","v":0.13599999999999998},null,"Worksheet A01"]
[null,"Upper ",{"$f":"'A01'!C11","v":0.54399999999999993},null,"Worksheet A01"]
["Dermal Exposure Rate: ","DermRate"]
[null,"Central ",2.9,"mg per lb handled","Section 3.2.2.1.2."]
[null,"Lower ",2.9,null,"Section 3.2.2.1.2."]
[null,"Upper ",2.9,null,"Section 3.2.2.1.2."]
["PPE Factor for Dermal Exposure: ","DermPPE"]
[null,"Central ",0.99219999999999997,"Proportion","Section 3.2.2.1.2."]
[null,"Upper ",0.99219999999999997,null,"Section 3.2.2.1.2."]
[null,"Lower ",0.99219999999999997,null,"Section 3.2.2.1.2."]
["Amount Deposited on Skin","DermAmnt","Amnt × DermRate × (1-DermPPE)"]
[null,"Central",{"$f":"C8*C12*(1-C16)","v":6.1526400000000217E-3},"mg/day","Eq."]
[null,"Lower",{"$f":"C9*C13*(1-C17)","v":3.0763200000000109E-3},null,"Eq."]
[null,"Upper",{"$f":"C10*C14*(1-C18)","v":1.2305280000000043E-2},null,"Eq."]
["First-order dermal absorption rates ","ka"]
[null,"Central",1.7999999999999999E-2,"day-1","Section 3.1.3.2.1"]
[null,"Lower",1.7999999999999999E-2,null,"Section 3.1.3.2.1"]
[null,"Upper",1.7999999999999999E-2,null,"Section 3.1.3.2.1"]
["Absorbed Dermal Dose","DermAbs","Amnt × Prop"]
[null,"Central",{"$f":"C20*C24","v":1.1074752000000038E-4},"mg","Eq."]
[null,"Lower",{"$f":"C21*C25","v":5.5373760000000189E-5},"mg","Eq."]
[null,"Upper",2.2149504000000075E-4,"mg","Eq."]
["Inhalation Exposure Rate: ","InhExpRate"]
[null,"Central ",1.1999999999999999E-3,"mg/lb handled","Section 3.2.2.1.2."]
[null,"Lower ",1.1999999999999999E-3,null,"Section 3.2.2.1.2."]
[null,"Upper ",1.1999999999999999E-3,null,"Section 3.2.2.1.2."]
["PPE Factor for Inhalation Exposure: ","InhPPE"]
[null,"Central ",0,"Proportion","N/A"]
[null,"Upper ",0,null,"N/A"]
[null,"Lower ",0,null,"N/A"]
["Inhalation Absorption Rate: ","InhRate",1,"Proportion"]
["Absorbed Inhalation Dose","InhAbs","Amnt × InhExpRate × (1-InhPPE)"]
[null,"Central",{"$f":"C8*C32*C$39","v":3.2639999999999991E-4},"mg","Eq."]
[null,"Lower",{"$f":"C9*C33*C$39","v":1.6319999999999996E-4},null,"Eq."]
[null,"Upper",{"$f":"C10*C34*C$39","v":6.5279999999999982E-4},null,"Eq."]
["Total Absorbed dose","Dose","(DermAbs + InhAbs) ÷ BW"]
[null,"Central ",{"$f":"(C28+C41)/C$6","v":6.2449645714285756E-6},"mg/kg bw/day","Eq"]
[null,"Lower ",{"$f":"(C29+C42)/C$6","v":3.1224822857142878E-6},null,"Eq"]
[null,"Upper ",{"$f":"(C30+C43)/C$6","v":1.2489929142857151E-5},null,"Eq"]

{"sheet":"C01b-Sup","index":19,"n_rows":47,"n_cols":5,"rows_kept":47,"cut":false,"hidden":false,"merged":[[22,0,25,0],[0,0,0,4],[1,1,1,3],[2,1,2,3],[3,1,3,3],[6,0,9,0],[10,0,13,0],[11,3,13,3],[14,0,17,0],[18,0,21,0],[19,3,21,3],[26,0,29,0],[30,0,33,0],[34,0,37,0],[39,0,42,0],[43,0,46,0]]}
["Exposure estimates based on Pesticide Handlers Exposure Database (PHED) Method  Without Gloves"]
["Short Title","General exposure"]
["Receptor","Worker"]
["Duration","Acute"]
["Parameter/Assumption","Code / Range","Equation/ Value","Units","Reference/Equation"]
["Body Weight","BW",70,null,"Scenario assumption"]
["Amount a.i. handled per day (a.e. for weak acids): ","Amnt","InjAmnt x Ninj"]
[null,"Central ",{"$f":"'A01'!C9","v":0.27199999999999996},"lb a.i.","Worksheet A01"]
[null,"Lower ",{"$f":"'A01'!C10","v":0.13599999999999998},null,"Worksheet A01"]
[null,"Upper ",{"$f":"'A01'!C11","v":0.54399999999999993},null,"Worksheet A01"]
["Dermal Exposure Rate: ","DermRate"]
[null,"Central ",2.9,"mg per lb handled","Section 3.2.2.1.2."]
[null,"Lower ",2.9,null,"Section 3.2.2.1.2."]
[null,"Upper ",2.9,null,"Section 3.2.2.1.2."]
["PPE Factor for Dermal Exposure: ","DermPPE"]
[null,"Central ",0,"Proportion","Section 3.2.2.1.2."]
[null,"Upper ",0,null,"Section 3.2.2.1.2."]
[null,"Lower ",0,null,"Section 3.2.2.1.2."]
["Amount Deposited on Skin","DermAmnt","Amnt × DermRate × (1-DermPPE)"]
[null,"Central",{"$f":"C8*C12*(1-C16)","v":0.78879999999999983},"mg/day","Eq."]
[null,"Lower",{"$f":"C9*C13*(1-C17)","v":0.39439999999999992},null,"Eq."]
[null,"Upper",{"$f":"C10*C14*(1-C18)","v":1.5775999999999997},null,"Eq."]
["First-order dermal absorption rates ","ka"]
[null,"Central",1.7999999999999999E-2,"day-1","Section 3.1.3.2.1"]
[null,"Lower",1.7999999999999999E-2,null,"Section 3.1.3.2.1"]
[null,"Upper",1.7999999999999999E-2,null,"Section 3.1.3.2.1"]
["Absorbed Dermal Dose","DermAbs","Amnt × Prop"]
[null,"Central",{"$f":"C20*C24","v":1.4198399999999996E-2},"mg","Eq."]
[null,"Lower",{"$f":"C21*C25","v":7.0991999999999982E-3},"mg","Eq."]
[null,"Upper",2.8396799999999993E-2,"mg","Eq."]
["Inhalation Exposure Rate: ","InhExpRate"]
[null,"Central ",1.1999999999999999E-3,"mg/lb handled","Section 3.2.2.1.2."]
[null,"Lower ",1.1999999999999999E-3,null,"Section 3.2.2.1.2."]
[null,"Upper ",1.1999999999999999E-3,null,"Section 3.2.2.1.2."]
["PPE Factor for Inhalation Exposure: ","InhPPE"]
[null,"Central ",0,"Proportion","N/A"]
[null,"Upper ",0,null,"N/A"]
[null,"Lower ",0,null,"N/A"]
["Inhalation Absorption Rate: ","InhRate",1,"Proportion"]
["Absorbed Inhalation Dose","InhAbs","Amnt × InhExpRate × (1-InhPPE)"]
[null,"Central",{"$f":"C8*C32*C$39","v":3.2639999999999991E-4},"mg","Eq."]
[null,"Lower",{"$f":"C9*C33*C$39","v":1.6319999999999996E-4},null,"Eq."]
[null,"Upper",{"$f":"C10*C34*C$39","v":6.5279999999999982E-4},null,"Eq."]
["Total Absorbed dose","Dose","(DermAbs + InhAbs) ÷ BW"]
[null,"Central ",{"$f":"(C28+C41)/C$6","v":2.0749714285714279E-4},"mg/kg bw/day","Eq"]
[null,"Lower ",{"$f":"(C29+C42)/C$6","v":1.037485714285714E-4},null,"Eq"]
[null,"Upper ",{"$f":"(C30+C43)/C$6","v":4.1499428571428558E-4},null,"Eq"]

{"sheet":"C02a","index":20,"n_rows":26,"n_cols":5,"rows_kept":26,"cut":false,"hidden":false,"merged":[[10,0,13,0],[14,0,17,0],[18,0,21,0],[22,0,25,0],[0,0,0,4],[1,1,1,3],[2,1,2,3],[3,1,3,3],[4,1,4,3],[7,0,8,0]]}
["Accidental Dermal Exposure Assessment Using Zero-Order Absorption, Worker, Surface Area, Hands, for 1 minute(s)"]
["Short Title","Contaminated Gloves, 1 minute",null,null,"DrmZr"]
["Receptor","Worker"]
["Duration","Acute"]
["Surface Contaminated","Surface Area, Hands"]
["Parameter/Assumption","Code / Range","Equation/   Value","Units","Reference/Designation"]
["Surface Area","SA",{"$f":"'A02'!$C$141","v":840},"cm2","U.S. EPA/ORD 1992"]
["Duration of Exposure","T_min",1,"minutes","Scenario parameter"]
[null,"T_hr",{"$f":"C8/60","v":1.6666666666666666E-2},"hours","Eq"]
["Body weight","BW",{"$f":"'A02'!$C$140","v":70},"kg","ICRP 1975"]
["Concentration in solution (mg/mL)","Conc"]
[null,"Central ",{"$f":"'A01'!C20","v":21.6},"mg/mL","Worksheet A01"]
[null,"Lower ",{"$f":"'A01'!C21","v":10.8},null,"Worksheet A01"]
[null,"Upper ",{"$f":"'A01'!C22","v":43.2},null,"Worksheet A01"]
["Toxic Equivalency Factor for formulation:  (See risk assessment if this has a value other than 1.)","TEF"]
[null,"Central ",{"$f":"[1]A01!C$35","v":1},"Unitless","Worksheet A01"]
[null,"Lower ",{"$f":"[1]A01!C$36","v":1},null,"Worksheet A01"]
[null,"Upper ",{"$f":"[1]A01!C$37","v":1},null,"Worksheet A01"]
["Dermal permeability","Kp"]
[null,"Central ",{"$f":"'B01'!C13","v":3.2000000000000003E-4},"cm/hour","Section 3.2.2.2"]
[null,"Lower ",{"$f":"'B01'!C14","v":9.2E-5},null,"Section 3.2.2.2"]
[null,"Upper ",{"$f":"'B01'!C15","v":1E-3},null,"Section 3.2.2.2"]
["Absorbed Dose","Dose","Kp × Conc × T_hr × SA x TEF ÷ BW"]
[null,"Central ",{"$f":"C20*C12*C$9*C$7*C16/C$10","v":1.3824E-3},"mg/kg","Eq"]
[null,"Lower ",{"$f":"C21*C13*C$9*C$7*C17/C$10","v":1.9871999999999999E-4},"mg/kg","Eq"]
[null,"Upper ",{"$f":"C22*C14*C$9*C$7*C18/C$10","v":8.6400000000000001E-3},"mg/kg","Eq"]

{"sheet":"C02b","index":21,"n_rows":26,"n_cols":5,"rows_kept":26,"cut":false,"hidden":false,"merged":[[10,0,13,0],[14,0,17,0],[18,0,21,0],[22,0,25,0],[0,0,0,4],[1,1,1,3],[2,1,2,3],[3,1,3,3],[4,1,4,3],[7,0,8,0]]}
["Accidental Dermal Exposure Assessment Using Zero-Order Absorption, Worker, Surface Area, Hands, for 60 minute(s)"]
["Short Title","Contaminated Gloves, 60 minutes",null,null,"DrmZr"]
["Receptor","Worker"]
["Duration","Acute"]
["Surface Contaminated","Surface Area, Hands"]
["Parameter/Assumption","Code / Range","Equation/   Value","Units","Reference/Designation"]
["Surface Area","SA",{"$f":"'A02'!$C$141","v":840},"cm2","U.S. EPA/ORD 1992"]
["Duration of Exposure","T_min",60,"minutes","Scenario parameter"]
[null,"T_hr",{"$f":"C8/60","v":1},"hours","Eq"]
["Body weight","BW",{"$f":"'A02'!$C$140","v":70},"kg","ICRP 1975"]
["Concentration in solution (mg/mL)","Conc"]
[null,"Central ",{"$f":"'A01'!C20","v":21.6},"mg/mL","Worksheet A01"]
[null,"Lower ",{"$f":"'A01'!C21","v":10.8},null,"Worksheet A01"]
[null,"Upper ",{"$f":"'A01'!C22","v":43.2},null,"Worksheet A01"]
["Toxic Equivalency Factor for formulation:  (See risk assessment if this has a value other than 1.)","TEF"]
[null,"Central ",{"$f":"[1]A01!C$35","v":1},"Unitless","Worksheet A01"]
[null,"Lower ",{"$f":"[1]A01!C$36","v":1},null,"Worksheet A01"]
[null,"Upper ",{"$f":"[1]A01!C$37","v":1},null,"Worksheet A01"]
["Dermal permeability","Kp"]
[null,"Central ",{"$f":"'B01'!C13","v":3.2000000000000003E-4},"cm/hour","Section 3.2.2.2"]
[null,"Lower ",{"$f":"'B01'!C14","v":9.2E-5},null,"Section 3.2.2.2"]
[null,"Upper ",{"$f":"'B01'!C15","v":1E-3},null,"Section 3.2.2.2"]
["Absorbed Dose","Dose","Kp × Conc × T_hr × SA x TEF ÷ BW"]
[null,"Central ",{"$f":"C20*C12*C$9*C$7*C16/C$10","v":8.2944000000000004E-2},"mg/kg","Eq"]
[null,"Lower ",{"$f":"C21*C13*C$9*C$7*C17/C$10","v":1.19232E-2},"mg/kg","Eq"]
[null,"Upper ",{"$f":"C22*C14*C$9*C$7*C18/C$10","v":0.51840000000000008},"mg/kg","Eq"]

{"sheet":"C03a","index":22,"n_rows":35,"n_cols":5,"rows_kept":35,"cut":false,"hidden":false,"merged":[[11,0,14,0],[0,0,0,4],[1,1,1,3],[2,1,2,3],[3,1,3,3],[4,1,4,3],[15,0,18,0],[19,0,22,0],[23,0,26,0],[27,0,30,0],[31,0,34,0]]}
["Accidental Dermal Exposure Assessment Using First-Order Absorption, Worker, Surface Area, Hands, for 60 minute(s)"]
["Short Title","Spill on hands, 1 hour",null,null,"DrmFOA"]
["Receptor","Worker"]
["Duration","Acute"]
["Surface Contaminated","Surface Area, Hands"]
["Parameter/Assumption","Code / Range","Equation/   Value","Units","Reference/Designation"]
["Surface Area","SA",{"$f":"'A02'!$C$141","v":840},"cm2","U.S. EPA/ORD 1992"]
["Duration of Exposure",null,60,"minutes","Scenario parameter"]
[null,"T",{"$f":"C8/60","v":1},"hours","Eq"]
["Body weight","BW",{"$f":"'A02'!$C$140","v":70},"kg","ICRP 1975"]
["Liquid adhering to skin","L",{"$f":"'A02'!$C$109","v":8.0000000000000002E-3},"mL/cm2","Mason and Johnson 1987"]
["Concentration in solution","Conc"]
[null,"Central ",{"$f":"'A01'!C20","v":21.6},"mg/mL","Worksheet A01"]
[null,"Lower ",{"$f":"'A01'!C21","v":10.8},null,"Worksheet A01"]
[null,"Upper ",{"$f":"'A01'!C22","v":43.2},null,"Worksheet A01"]
["First-order dermal absorption rates ","ka"]
[null,"Central",{"$f":"'B03'!C8","v":7.5000000000000002E-4},"hour-1","Section 3.2.2.2"]
[null,"Lower",{"$f":"'B03'!C9","v":7.5000000000000002E-4},null,"Section 3.2.2.2"]
[null,"Upper",{"$f":"'B03'!C10","v":7.5000000000000002E-4},null,"Section 3.2.2.2"]
["Toxic Equivalency Factor for formulation:  (See risk assessment if this has a value other than 1.)","TEF"]
[null,"Central ",1,"Unitless","Worksheet A01"]
[null,"Lower ",1,null,"Worksheet A01"]
[null,"Upper ",1,null,"Worksheet A01"]
["Amount Deposited on Skin","Amnt","L × SA × Conc x TEF"]
[null,"Central",{"$f":"$C$11*$C$7*C13*C21","v":145.15200000000002},"mg","Eq"]
[null,"Lower",{"$f":"$C$11*$C$7*C14*C22","v":72.576000000000008},null,"Eq"]
[null,"Upper",{"$f":"$C$11*$C$7*C15*C23","v":290.30400000000003},null,"Eq"]
["Proportion absorbed over period T","Prop","1-exp(-ka T)"]
[null,"Central",{"$f":"1-EXP(-C17 *$C$9)","v":7.4971882029928327E-4},"hour-1","Eq"]
[null,"Lower",{"$f":"1-EXP(-C18 *$C$9)","v":7.4971882029928327E-4},null,"Eq"]
[null,"Upper",{"$f":"1-EXP(-C19 *$C$9)","v":7.4971882029928327E-4},null,"Eq"]
["Absorbed Dose","Dose","Amnt × Prop ÷ BW"]
[null,"Central",{"$f":"C25*C29/$C$10","v":1.5546169457725939E-3},"mg/kg bw","Eq"]
[null,"Lower",{"$f":"C26*C30/$C$10","v":7.7730847288629695E-4},null,"Eq"]
[null,"Upper",{"$f":"C27*C31/$C$10","v":3.1092338915451878E-3},null,"Eq"]

{"sheet":"C03b","index":23,"n_rows":35,"n_cols":5,"rows_kept":35,"cut":false,"hidden":false,"merged":[[11,0,14,0],[0,0,0,4],[1,1,1,3],[2,1,2,3],[3,1,3,3],[4,1,4,3],[15,0,18,0],[19,0,22,0],[23,0,26,0],[27,0,30,0],[31,0,34,0]]}
["Accidental Dermal Exposure Assessment Using First-Order Absorption, Worker, Surface Area, Lower legs, for 60 minute(s)"]
["Short Title","Spill on hands, 1 hour",null,null,"DrmFOA"]
["Receptor","Worker"]
["Duration","Acute"]
["Surface Contaminated","Surface Area, Hands"]
["Parameter/Assumption","Code / Range","Equation/   Value","Units","Reference/Designation"]
["Surface Area","SA",{"$f":"'A02'!$C$142","v":2070},"cm2","U.S. EPA/ORD 1992"]
["Duration of Exposure",null,60,"minutes","Scenario parameter"]
[null,"T",{"$f":"C8/60","v":1},"hours","Eq"]
["Body weight","BW",{"$f":"'A02'!$C$140","v":70},"kg","ICRP 1975"]
["Liquid adhering to skin","L",{"$f":"'A02'!$C$109","v":8.0000000000000002E-3},"mL/cm2","Mason and Johnson 1987"]
["Concentration in solution","Conc"]
[null,"Central ",{"$f":"'A01'!C20","v":21.6},"mg/mL","Worksheet A01"]
[null,"Lower ",{"$f":"'A01'!C21","v":10.8},null,"Worksheet A01"]
[null,"Upper ",{"$f":"'A01'!C22","v":43.2},null,"Worksheet A01"]
["First-order dermal absorption rates ","ka"]
[null,"Central",{"$f":"'B03'!C8","v":7.5000000000000002E-4},"hour-1","Section 3.2.2.2"]
[null,"Lower",{"$f":"'B03'!C9","v":7.5000000000000002E-4},null,"Section 3.2.2.2"]
[null,"Upper",{"$f":"'B03'!C10","v":7.5000000000000002E-4},null,"Section 3.2.2.2"]
["Toxic Equivalency Factor for formulation:  (See risk assessment if this has a value other than 1.)","TEF"]
[null,"Central ",1,"Unitless","Worksheet A01"]
[null,"Lower ",1,null,"Worksheet A01"]
[null,"Upper ",1,null,"Worksheet A01"]
["Amount Deposited on Skin","Amnt","L × SA × Conc x TEF"]
[null,"Central",{"$f":"$C$11*$C$7*C13*C21","v":357.69599999999997},"mg","Eq"]
[null,"Lower",{"$f":"$C$11*$C$7*C14*C22","v":178.84799999999998},null,"Eq"]
[null,"Upper",{"$f":"$C$11*$C$7*C15*C23","v":715.39199999999994},null,"Eq"]
["Proportion absorbed over period T","Prop","1-exp(-ka T)"]
[null,"Central",{"$f":"1-EXP(-C17 *$C$9)","v":7.4971882029928327E-4},"hour-1","Eq"]
[null,"Lower",{"$f":"1-EXP(-C18 *$C$9)","v":7.4971882029928327E-4},null,"Eq"]
[null,"Upper",{"$f":"1-EXP(-C19 *$C$9)","v":7.4971882029928327E-4},null,"Eq"]
["Absorbed Dose","Dose","Amnt × Prop ÷ BW"]
[null,"Central",{"$f":"C25*C29/$C$10","v":3.8310203306538915E-3},"mg/kg bw","Eq"]
[null,"Lower",{"$f":"C26*C30/$C$10","v":1.9155101653269458E-3},null,"Eq"]
[null,"Upper",{"$f":"C27*C31/$C$10","v":7.662040661307783E-3},null,"Eq"]

{"sheet":"D05","index":24,"n_rows":23,"n_cols":5,"rows_kept":23,"cut":false,"hidden":false,"merged":[[10,0,13,0],[14,0,17,0],[19,0,22,0],[0,0,0,4],[1,1,1,3],[2,1,2,3],[6,0,9,0]]}
["Acute exposure of Child after an accidental spill of the pesticide into a pond"]
["Short Title","Water consumption, accidental spill",null,null,"WatSpillAmnt"]
["Receptor","Child"]
["Duration","Acute"]
["Parameter/Assumption","Code / Range","Equation/   Value","Units","Reference/Designation"]
["Pond Volume","VPL",{"$f":"'A01'!C27","v":20000000},"liters","Worksheet A01"]
["Mg of a.i. spilled into water","MgA.I."]
[null,"Central ",{"$f":"'A01'!C24","v":5000},"mg","Worksheet A01"]
[null,"Lower ",{"$f":"'A01'!C25","v":600},null,"Worksheet A01"]
[null,"Upper ",{"$f":"'A01'!C26","v":42600},null,"Worksheet A01"]
["Concentration in pond water","ConcWat","MgA.I. ÷ VPL"]
[null,"Central ",{"$f":"C8/C$6","v":2.5000000000000001E-4},"mg/L","Eq"]
[null,"Lower ",{"$f":"C9/C$6","v":3.0000000000000001E-5},null,"Eq"]
[null,"Upper ",2.1299999999999999E-3,null,"Eq"]
["Amount of water consumed in one day","Amnt"]
[null,"Central ",{"$f":"'A03'!$E$38","v":1},"liters/day","U.S. EPA/ORD 1996"]
[null,"Lower ",{"$f":"'A03'!$E$39","v":0.61},null,"U.S. EPA/ORD 1996"]
[null,"Upper ",{"$f":"'A03'!$E$40","v":1.5},null,"U.S. EPA/ORD 1996"]
["Body weight","BW",{"$f":"[1]A02!$C$56","v":13.3},"kg","U.S. EPA/ORD 1996"]
["Dose","Dose","ConcWat  × Amnt ÷ BW"]
[null,"Central ",{"$f":"C12*C16/C$19","v":1.8796992481203007E-5},"mg/kg","Eq"]
[null,"Lower ",{"$f":"C13*C17/C$19","v":1.3759398496240601E-6},"mg/kg","Eq"]
[null,"Upper ",{"$f":"C14*C18/C$19","v":2.4022556390977442E-4},"mg/kg","Eq"]

{"sheet":"D08a","index":25,"n_rows":35,"n_cols":5,"rows_kept":35,"cut":false,"hidden":false,"merged":[[31,0,34,0],[10,0,13,0],[14,0,17,0],[18,0,21,0],[22,0,25,0],[26,0,29,0],[0,0,0,4],[1,1,1,3],[2,1,2,3],[3,1,3,3],[6,0,9,0]]}
["Acute scenario for the consumption of contaminated fish by Adult Male after an accidental spill of the pesticide into a pond"]
["Short Title","Fish consumption, accidental spill",null,null,"FishAmntSpill"]
["Receptor","Adult Male"]
["Duration","Acute"]
["Parameter/Assumption","Code / Range","Equation/   Value","Units","Reference/Designation"]
["Pond Volume","VPL",{"$f":"'A01'!C27","v":20000000},"liters","Worksheet A01"]
["Mg of a.i. spilled into water","MgA.I."]
[null,"Central ",{"$f":"'A01'!C24","v":5000},"mg","Worksheet A01"]
[null,"Lower ",{"$f":"'A01'!C25","v":600},null,"Worksheet A01"]
[null,"Upper ",{"$f":"'A01'!C26","v":42600},null,"Worksheet A01"]
["Concentration in pond water","ConcWat","MgA.I. ÷ VPL"]
[null,"Central ",{"$f":"C8/C$6","v":2.5000000000000001E-4},"mg/L","Eq"]
[null,"Lower ",{"$f":"C9/C$6","v":3.0000000000000001E-5},null,"Eq"]
[null,"Upper ",2.1299999999999999E-3,null,"Eq"]
["Bioconcentration factor","BCF"]
[null,"Central ",{"$f":"'B01'!$C$3","v":30},"L/kg","Section 3.2.3.5."]
[null,"Lower ",{"$f":"'B01'!$C$3","v":30},null,"Section 3.2.3.5."]
[null,"Upper ",{"$f":"'B01'!$C$3","v":30},null,"Section 3.2.3.5."]
["Concentration in fish","ConcFish","ConcWat × BCF"]
[null,"Central ",{"$f":"C12*C16","v":7.4999999999999997E-3},"mg/kg","Eq"]
[null,"Lower ",{"$f":"C13*C17","v":8.9999999999999998E-4},null,"Eq"]
[null,"Upper ",{"$f":"C14*C18","v":6.3899999999999998E-2},null,"Eq"]
["Amount of fish consumed","Amnt"]
[null,"Central ",{"$f":"'A03'!$E$19","v":0.158},"kg/day","Ruffle et al. 1994"]
[null,"Lower ",{"$f":"'A03'!$E$19","v":0.158},null,"Ruffle et al. 1994"]
[null,"Upper ",{"$f":"'A03'!$E$19","v":0.158},null,"Ruffle et al. 1994"]
["Toxic Equivalency Factor for formulation:  (See risk assessment if this has a value other than 1.)","TEF"]
[null,"Central ",1,"Unitless","Worksheet A01"]
[null,"Lower ",1,null,"Worksheet A01"]
[null,"Upper ",1,null,"Worksheet A01"]
["Body weight","BW",{"$f":"'A02'!$C$7","v":70},"kg","ICRP 1975"]
["Dose","Dose","ConcFish × Amnt × TEF ÷ BW"]
[null,"Central ",{"$f":"C20*C24*C28/C$31","v":1.6928571428571431E-5},"mg/kg","Eq"]
[null,"Lower ",{"$f":"C21*C25*C29/C$31","v":2.0314285714285713E-6},"mg/kg","Eq"]
[null,"Upper ",{"$f":"C22*C26*C30/C$31","v":1.4423142857142857E-4},"mg/kg","Eq"]

{"sheet":"D08b","index":26,"n_rows":35,"n_cols":5,"rows_kept":35,"cut":false,"hidden":false,"merged":[[14,0,17,0],[18,0,21,0],[22,0,25,0],[26,0,29,0],[31,0,34,0],[10,0,13,0],[0,0,0,4],[1,1,1,3],[2,1,2,3],[3,1,3,3],[6,0,9,0]]}
["Acute scenario for the consumption of contaminated fish by Subsistence Populations after an accidental spill of the pesticide into a pond"]
["Short Title","Fish consumption, accidental spill",null,null,"FishAmntSpill"]
["Receptor","Subsistence Populations"]
["Duration","Acute"]
["Parameter/Assumption","Code / Range","Equation/   Value","Units","Reference/Designation"]
["Pond Volume","VPL",{"$f":"'A01'!C27","v":20000000},"liters","Worksheet A01"]
["Mg of a.i. spilled into water","MgA.I."]
[null,"Central ",{"$f":"'A01'!C24","v":5000},"mg","Worksheet A01"]
[null,"Lower ",{"$f":"'A01'!C25","v":600},null,"Worksheet A01"]
[null,"Upper ",{"$f":"'A01'!C26","v":42600},null,"Worksheet A01"]
["Concentration in pond water","ConcWat","MgA.I. ÷ VPL"]
[null,"Central ",{"$f":"C8/C$6","v":2.5000000000000001E-4},"mg/L","Eq"]
[null,"Lower ",{"$f":"C9/C$6","v":3.0000000000000001E-5},null,"Eq"]
[null,"Upper ",2.1299999999999999E-3,null,"Eq"]
["Bioconcentration factor","BCF"]
[null,"Central ",{"$f":"'B01'!$C$3","v":30},"L/kg","Section 3.2.3.5."]
[null,"Lower ",{"$f":"'B01'!$C$3","v":30},null,"Section 3.2.3.5."]
[null,"Upper ",{"$f":"'B01'!$C$3","v":30},null,"Section 3.2.3.5."]
["Concentration in fish","ConcFish","ConcWat × BCF"]
[null,"Central ",{"$f":"C12*C16","v":7.4999999999999997E-3},"mg/kg","Eq"]
[null,"Lower ",{"$f":"C13*C17","v":8.9999999999999998E-4},null,"Eq"]
[null,"Upper ",{"$f":"C14*C18","v":6.3899999999999998E-2},null,"Eq"]
["Amount of fish consumed","Amnt"]
[null,"Central ",{"$f":"'A03'!$E$34","v":0.77},"kg/day","Ruffle et al. 1994"]
[null,"Lower ",{"$f":"'A03'!$E$34","v":0.77},null,"Ruffle et al. 1994"]
[null,"Upper ",{"$f":"'A03'!$E$34","v":0.77},null,"Ruffle et al. 1994"]
["Toxic Equivalency Factor for formulation:  (See risk assessment if this has a value other than 1.)","TEF"]
[null,"Central ",1,"Unitless","Worksheet A01"]
[null,"Lower ",1,null,"Worksheet A01"]
[null,"Upper ",1,null,"Worksheet A01"]
["Body weight","BW",{"$f":"'A02'!$C$7","v":70},"kg","ICRP 1975"]
["Dose","Dose","ConcFish × Amnt × TEF ÷ BW"]
[null,"Central ",{"$f":"C20*C24*C28/C$31","v":8.25E-5},"mg/kg","Eq"]
[null,"Lower ",{"$f":"C21*C25*C29/C$31","v":9.9000000000000001E-6},"mg/kg","Eq"]
[null,"Upper ",{"$f":"C22*C26*C30/C$31","v":7.028999999999999E-4},"mg/kg","Eq"]

{"sheet":"D11","index":27,"n_rows":31,"n_cols":5,"rows_kept":31,"cut":false,"hidden":false,"merged":[[27,0,30,0],[0,0,0,4],[1,1,1,3],[2,1,2,3],[3,1,3,3],[4,1,4,3],[7,0,8,0],[11,0,14,0],[12,3,14,3],[15,0,18,0],[19,0,22,0],[23,0,26,0]]}
["Swimming Exposure Assessment Using Zero-Order Absorption, Adult Female, Surface Area, Whole body, for 60 minute(s) following an accidental spill"]
["Short Title","Swimming",null,null,"DrmZrSwm"]
["Receptor","Adult Female"]
["Duration","Acute Accidental"]
["Surface Contaminated","Surface Area, Whole body"]
["Parameter/Assumption","Code / Range","Equation/   Value","Units","Reference/Designation"]
["Surface Area","SA",{"$f":"'A02'!$C$6","v":16900},"cm2","U.S. EPA/ORD 1997"]
["Duration of Exposure","T_min",60,"minutes","Scenario "]
[null,"T_hr",{"$f":"C8/60","v":1},"hours","Eq"]
["Body weight","BW",{"$f":"[1]A02!$C$3","v":64},"kg","U.S. EPA/ORD 1985"]
["Pond Volume","VPL",{"$f":"'A01'!C27","v":20000000},"liters","Worksheet A01"]
["Mg of a.i. spilled into water","MgA.I."]
[null,"Central ",{"$f":"'A01'!C24","v":5000},"mg","Section 3.2.3.4.6"]
[null,"Lower ",{"$f":"'A01'!C25","v":600},null,"Section 3.2.3.4.6"]
[null,"Upper ",{"$f":"'A01'!C26","v":42600},null,"Section 3.2.3.4.6"]
["Concentration in water in mg/mL","ConcWat","MgA.I. ÷ VPL"]
[null,"Central ",{"$f":"C13/C$11","v":2.5000000000000001E-4},"mg/mL","Eq"]
[null,"Lower ",{"$f":"C14/C$11","v":3.0000000000000001E-5},null,"Eq"]
[null,"Upper ",2.1299999999999999E-3,null,"Eq"]
["Toxic Equivalency Factor for formulation:  (See risk assessment if this has a value other than 1.)","TEF"]
[null,"Central ",{"$f":"[1]A01!C$35","v":1},"Unitless","Worksheet A01"]
[null,"Lower ",{"$f":"[1]A01!C$36","v":1},null,"Worksheet A01"]
[null,"Upper ",{"$f":"[1]A01!C$37","v":1},null,"Worksheet A01"]
["Dermal permeability","Kp"]
[null,"Central ",{"$f":"'B03'!C4","v":3.2000000000000003E-4},"cm/hour","Section 3.2.2.2"]
[null,"Lower ",{"$f":"'B03'!C5","v":9.2E-5},null,"Section 3.2.2.2"]
[null,"Upper ",{"$f":"'B03'!C6","v":1E-3},null,"Section 3.2.2.2"]
["Absorbed Dose","Dose","Kp × Conc × T_hr × SA × TEF ÷ BW"]
[null,"Central ",{"$f":"C25*C17*C$9*C$7*C21/C$10","v":2.1125000000000002E-5},"mg/kg"]
[null,"Lower ",{"$f":"C26*C18*C$9*C$7*C22/C$10","v":7.2881250000000004E-7},"mg/kg"]
[null,"Upper ",{"$f":"C27*C19*C$9*C$7*C23/C$10","v":5.6245312500000002E-4},"mg/kg"]

{"sheet":"E01","index":28,"n_rows":15,"n_cols":6,"rows_kept":15,"cut":false,"hidden":false,"merged":[[0,0,0,5],[1,2,1,4],[2,0,3,0],[2,1,3,1],[2,2,2,4],[2,5,3,5]]}
["Worksheet E01: Summary of Worker Exposure Assessments"]
[null,null,null,null,null,"E01aV5-1Wrkr"]
["Scenario","Subsistence Populations","mg/kg/day or mg/kg/event",null,null,"Detail Worksheet"]
[null,null,"Central","Lower","Upper"]
["Accidental/Incidental Exposures"]
["Contaminated Gloves, 1 min.","Worker",{"$f":"'C02a'!$C$24","v":1.3824E-3},{"$f":"'C02a'!$C$25","v":1.9871999999999999E-4},{"$f":"'C02a'!$C$26","v":8.6400000000000001E-3},"C02a"]
["Contaminated Gloves, 1 hour","Worker",{"$f":"'C02b'!$C$24","v":8.2944000000000004E-2},{"$f":"'C02b'!$C$25","v":1.19232E-2},{"$f":"'C02b'!$C$26","v":0.51840000000000008},"C02b"]
["Spill on Hands, 1 hour","Worker",{"$f":"'C03a'!$C$33","v":1.5546169457725939E-3},{"$f":"'C03a'!$C$34","v":7.7730847288629695E-4},{"$f":"'C03a'!$C$35","v":3.1092338915451878E-3},"C03a"]
["Spill on lower legs, 1 hour","Worker",{"$f":"'C03b'!$C$33","v":3.8310203306538915E-3},{"$f":"'C03b'!$C$34","v":1.9155101653269458E-3},{"$f":"'C03b'!$C$35","v":7.662040661307783E-3},"C03b"]
["General Exposures - Ineffective Use of PPE"]
["Absorbed dose rate method","Worker",{"$f":"'C01a-Sup'!$C$19","v":8.1599999999999989E-4},{"$f":"'C01a-Sup'!$C$20","v":4.0799999999999989E-5},{"$f":"'C01a-Sup'!$C$21","v":5.4399999999999995E-3},"C01a-Sup"]
["EPA/PHED method","Worker",{"$f":"'C01b-Sup'!$C$45","v":2.0749714285714279E-4},{"$f":"'C01b-Sup'!$C$46","v":1.037485714285714E-4},{"$f":"'C01b-Sup'!$C$47","v":4.1499428571428558E-4},"C01b-Sup"]
["General Exposures - Effective Use of PPE"]
["Absorbed dose rate method","Worker",{"$f":"'C01a'!$C$19","v":6.3648000000000225E-6},{"$f":"'C01a'!$C$20","v":3.1824000000000108E-7},{"$f":"'C01a'!$C$21","v":4.2432000000000152E-5},"C01a"]
["EPA/PHED method","Worker",{"$f":"'C01b'!$C$45","v":6.2449645714285756E-6},{"$f":"'C01b'!$C$46","v":3.1224822857142878E-6},{"$f":"'C01b'!$C$47","v":1.2489929142857151E-5},"C01b"]

{"sheet":"E02","index":29,"n_rows":23,"n_cols":6,"rows_kept":23,"cut":false,"hidden":false,"merged":[[0,0,0,5],[1,2,1,4],[2,0,3,0],[2,1,3,1],[2,2,2,4],[2,5,3,5]]}
["Worksheet E01: Summary of Worker Hazard Quotients (Toxicity)"]
[null,null,null,null,null,"Custom E01aV5-1Wrkr"]
["Scenario","Receptor","Hazard Quotients",null,null,"Toxicity Value"]
[null,null,"Central","Lower","Upper"]
["Accidental/Incidental Exposures"]
["Contaminated Gloves, 1 min.","Worker",{"$f":"'E01'!C6/'E02'!$F6","v":5.5296000000000003},{"$f":"'E01'!D6/'E02'!$F6","v":0.79487999999999992},{"$f":"'E01'!E6/'E02'!$F6","v":34.56},{"$f":"'B02'!$E$3","v":2.5000000000000001E-4}]
["Contaminated Gloves, 1 hour","Worker",{"$f":"'E01'!C7/'E02'!$F7","v":331.77600000000001},{"$f":"'E01'!D7/'E02'!$F7","v":47.692799999999998},{"$f":"'E01'!E7/'E02'!$F7","v":2073.6000000000004},{"$f":"'B02'!$E$3","v":2.5000000000000001E-4}]
["Spill on Hands, 1 hour","Worker",{"$f":"'E01'!C8/'E02'!$F8","v":6.2184677830903752},{"$f":"'E01'!D8/'E02'!$F8","v":3.1092338915451876},{"$f":"'E01'!E8/'E02'!$F8","v":12.43693556618075},{"$f":"'B02'!$E$3","v":2.5000000000000001E-4}]
["Spill on lower legs, 1 hour","Worker",{"$f":"'E01'!C9/'E02'!$F9","v":15.324081322615566},{"$f":"'E01'!D9/'E02'!$F9","v":7.6620406613077829},{"$f":"'E01'!E9/'E02'!$F9","v":30.648162645231132},{"$f":"'B02'!$E$3","v":2.5000000000000001E-4}]
["General Exposures - Ineffective Use of PPE"]
["Longer-term"]
["Absorbed dose rate","Worker",{"$f":"'E01'!C11/$F12","v":10.879999999999999},{"$f":"'E01'!D11/$F12","v":0.54399999999999993},{"$f":"'E01'!E11/$F12","v":72.533333333333331},{"$f":"'B02'!E4","v":7.4999999999999993E-5}]
["EPA/PHED Method","Worker",{"$f":"'E01'!C12/'E02'!$F13","v":2.766628571428571},{"$f":"'E01'!D12/'E02'!$F13","v":1.3833142857142855},{"$f":"'E01'!E12/'E02'!$F13","v":5.533257142857142},{"$f":"'B02'!E4","v":7.4999999999999993E-5}]
["Shorter-term"]
["Absorbed dose rate","Worker",{"$f":"'E01'!C11/'E02'!$F15","v":3.2639999999999993},{"$f":"'E01'!D11/'E02'!$F15","v":0.16319999999999996},{"$f":"'E01'!E11/'E02'!$F15","v":21.759999999999998},{"$f":"'B02'!E3","v":2.5000000000000001E-4}]
["EPA/PHED Method","Worker",{"$f":"'E01'!C12/'E02'!$F16","v":0.82998857142857119},{"$f":"'E01'!D12/'E02'!$F16","v":0.41499428571428559},{"$f":"'E01'!E12/'E02'!$F16","v":1.6599771428571424},{"$f":"'B02'!E3","v":2.5000000000000001E-4}]
["General Exposures - Effective Use of PPE"]
["Longer-term"]
["Absorbed dose rate","Worker",{"$f":"'E01'!C14/'E02'!$F19","v":8.48640000000003E-2},{"$f":"'E01'!D14/'E02'!$F19","v":4.2432000000000147E-3},{"$f":"'E01'!E14/'E02'!$F19","v":0.56576000000000204},{"$f":"'B02'!E4","v":7.4999999999999993E-5}]
["EPA/PHED Method","Worker",{"$f":"'E01'!C15/'E02'!$F20","v":8.3266194285714343E-2},{"$f":"'E01'!D15/'E02'!$F20","v":4.1633097142857171E-2},{"$f":"'E01'!E15/'E02'!$F20","v":0.16653238857142869},{"$f":"'B02'!E4","v":7.4999999999999993E-5}]
["Shorter-term"]
["Absorbed dose rate","Worker",{"$f":"'E01'!C14/'E02'!$F22","v":2.5459200000000088E-2},{"$f":"'E01'!D14/'E02'!$F22","v":1.2729600000000044E-3},{"$f":"'E01'!E14/'E02'!$F22","v":0.1697280000000006},{"$f":"'B02'!E3","v":2.5000000000000001E-4}]
["EPA/PHED Method","Worker",{"$f":"'E01'!C15/'E02'!$F23","v":2.4979858285714304E-2},{"$f":"'E01'!D15/'E02'!$F23","v":1.2489929142857152E-2},{"$f":"'E01'!E15/'E02'!$F23","v":4.9959716571428607E-2},{"$f":"'B02'!E3","v":2.5000000000000001E-4}]

{"sheet":"E03","index":30,"n_rows":25,"n_cols":6,"rows_kept":25,"cut":false,"hidden":false,"merged":[[0,0,0,5],[1,2,1,4],[2,0,3,0],[2,1,3,1],[2,2,2,4],[2,5,3,5]]}
["Worksheet E03: Summary of Exposure Assessments for the General Public"]
[null,null,null,null,null,"E03aV5"]
["Scenario","Receptor","mg/kg/day or mg/kg/event",null,null,"Detail Worksheet"]
[null,null,"Central","Lower","Upper"]
["Accidental Acute Exposures (dose in mg/kg/event)"]
["Direct Spray of Child, whole body","Child","No exposure assessment"]
["Direct Spray of Woman, feet and lower legs","Adult Female","No exposure assessment"]
["Water consumption (spill)","Child",{"$f":"'D05'!$C$21","v":1.8796992481203007E-5},{"$f":"'D05'!$C$22","v":1.3759398496240601E-6},{"$f":"'D05'!$C$23","v":2.4022556390977442E-4},"D05"]
["Fish consumption (spill)","Adult Male",{"$f":"D08a!$C$33","v":1.6928571428571431E-5},{"$f":"D08a!$C$34","v":2.0314285714285713E-6},{"$f":"D08a!$C$35","v":1.4423142857142857E-4},"D08a"]
["Fish consumption (spill)","Subsistence Populations",{"$f":"D08b!$C$33","v":8.25E-5},{"$f":"D08b!$C$34","v":9.9000000000000001E-6},{"$f":"D08b!$C$35","v":7.028999999999999E-4},"D08b"]
["Swimming, one hour","Adult Female",{"$f":"'D11'!$C$29","v":2.1125000000000002E-5},{"$f":"'D11'!$C$30","v":7.2881250000000004E-7},{"$f":"'D11'!$C$31","v":5.6245312500000002E-4},"D11"]
["Non-Accidental Acute Exposures (dose in mg/kg/event)"]
["Vegetation Contact, shorts and T-shirt","Adult Female","No exposure assessment"]
["Contaminated Fruit","Adult Female","No exposure assessment"]
["Contaminated Vegetation","Adult Female","No exposure assessment"]
["Swimming, one hour","Adult Female","No exposure assessment"]
["Water consumption","Child","No exposure assessment"]
["Fish consumption","Adult Male","No exposure assessment"]
["Fish consumption","Subsistence Populations","No exposure assessment"]
["Chronic/Longer Term Exposures (dose in mg/kg/day)"]
["Contaminated Fruit","Adult Female","No exposure assessment"]
["Contaminated Vegetation","Adult Female","No exposure assessment"]
["Water consumption","Adult Male","No exposure assessment"]
["Fish consumption","Adult Male","No exposure assessment"]
["Fish consumption","Subsistence Populations","No exposure assessment"]

{"sheet":"E04","index":31,"n_rows":25,"n_cols":6,"rows_kept":25,"cut":false,"hidden":false,"merged":[[0,0,0,5],[1,2,1,4],[2,0,3,0],[2,1,3,1],[2,2,2,4],[2,5,3,5]]}
["Worksheet E03: Summary of Hazard Quotients (Toxicity) for the General Public"]
[null,null,null,null,null,"E03aV5"]
["Scenario","Receptor","Hazard Quotients",null,null,"Toxicity Value"]
[null,null,"Central","Lower","Upper"]
["Accidental Acute Exposures (dose in mg/kg/event)"]
["Direct Spray of Child, whole body","Child","No exposure assessment"]
["Direct Spray of Woman, feet and lower legs","Adult Female","No exposure assessment"]
["Water consumption (spill)","Child",{"$f":"'E03'!C8/$F8","v":7.5187969924812026E-2},{"$f":"'E03'!D8/$F8","v":5.5037593984962399E-3},{"$f":"'E03'!E8/$F8","v":0.9609022556390977},{"$f":"'B02'!$E$3","v":2.5000000000000001E-4}]
["Fish consumption (spill)","Adult Male",{"$f":"'E03'!C9/$F9","v":6.7714285714285727E-2},{"$f":"'E03'!D9/$F9","v":8.1257142857142847E-3},{"$f":"'E03'!E9/$F9","v":0.57692571428571426},{"$f":"'B02'!$E$3","v":2.5000000000000001E-4}]
["Fish consumption (spill)","Subsistence Populations",{"$f":"'E03'!C10/$F10","v":0.33},{"$f":"'E03'!D10/$F10","v":3.9599999999999996E-2},{"$f":"'E03'!E10/$F10","v":2.8115999999999994},{"$f":"'B02'!$E$3","v":2.5000000000000001E-4}]
["Swimming, one hour","Adult Female",{"$f":"'E03'!C11/$F11","v":8.4500000000000006E-2},{"$f":"'E03'!D11/$F11","v":2.9152500000000003E-3},{"$f":"'E03'!E11/$F11","v":2.2498125},{"$f":"'B02'!$E$3","v":2.5000000000000001E-4}]
["Non-Accidental Acute Exposures (dose in mg/kg/event)"]
["Vegetation Contact, shorts and T-shirt","Adult Female","No exposure assessment"]
["Contaminated Fruit","Adult Female","No exposure assessment"]
["Contaminated Vegetation","Adult Female","No exposure assessment"]
["Swimming, one hour","Adult Female","No exposure assessment"]
["Water consumption","Child","No exposure assessment"]
["Fish consumption","Adult Male","No exposure assessment"]
["Fish consumption","Subsistence Populations","No exposure assessment"]
["Chronic/Longer Term Exposures (dose in mg/kg/day)"]
["Contaminated Fruit","Adult Female","No exposure assessment"]
["Contaminated Vegetation","Adult Female","No exposure assessment"]
["Water consumption","Adult Male","No exposure assessment"]
["Fish consumption","Adult Male","No exposure assessment"]
["Fish consumption","Subsistence Populations","No exposure assessment"]

{"sheet":"F05a","index":32,"n_rows":24,"n_cols":5,"rows_kept":24,"cut":false,"hidden":false,"merged":[[20,0,23,0],[0,0,0,4],[1,1,1,3],[2,1,2,3],[6,0,8,0],[9,0,10,0],[12,0,15,0],[16,0,19,0]]}
["Acute exposure of Small Mammal after an accidental spill of the pesticide into a pond"]
["Short Title","Water consumption, accidental spill",null,null,"WatSpillAllo Modified"]
["Receptor","Small Mammal"]
["Duration","Acute"]
["Parameter/Assumption","Code / Range","Equation/   Value","Units","Reference/Designation"]
["Body weight","BW",{"$f":"'A02'!$C$99","v":0.02},"kg","Default"]
["Allometric coefficients forwater consumption per day in liters and BW in kilograms"]
[null,"alpha",{"$f":"'A02'!$C$107","v":9.9000000000000005E-2},null,"U.S. EPA/ORD 1993"]
[null,"beta",{"$f":"'A02'!$C$108","v":0.9},null,"U.S. EPA/ORD 1993"]
["Amount of water consumed per day",null,"Amnt = alpha BW beta"]
[null,"Amnt",{"$f":"C8*(C6^C9)","v":2.9279401205240612E-3},"liters","Eq"]
["Pond Volume","VPL",{"$f":"'A01'!C27","v":20000000},"liters","Worksheet A01"]
["Mg of a.i. spilled into water","MgA.I."]
[null,"Central ",{"$f":"'A01'!C24","v":5000},"mg","Worksheet A01"]
[null,"Lower ",{"$f":"'A01'!C25","v":600},null,"Worksheet A01"]
[null,"Upper ",{"$f":"'A01'!C26","v":42600},null,"Worksheet A01"]
["Concentration in pond water","ConcWat","MgA.I. ÷ VPL"]
[null,"Central ",{"$f":"C14/C$12","v":2.5000000000000001E-4},"mg/L","Eq"]
[null,"Lower ",{"$f":"C15/C$12","v":3.0000000000000001E-5},null,"Eq"]
[null,"Upper ",2.1299999999999999E-3,null,"Eq"]
["Absorbed Dose","Dose","ConcWat  × Amnt ÷ BW"]
[null,"Central ",{"$f":"C18*C$11/C$6","v":3.6599251506550768E-5},"mg/kg","Eq"]
[null,"Lower ",{"$f":"C19*C$11/C$6","v":4.3919101807860918E-6},"mg/kg","Eq"]
[null,"Upper ",3.118256228358125E-4,"mg/kg","Eq"]

{"sheet":"F05b","index":33,"n_rows":24,"n_cols":5,"rows_kept":24,"cut":false,"hidden":false,"merged":[[16,0,19,0],[20,0,23,0],[0,0,0,4],[1,1,1,3],[2,1,2,3],[6,0,8,0],[9,0,10,0],[12,0,15,0]]}
["Acute exposure of Small Bird after an accidental spill of the pesticide into a pond"]
["Short Title","Water consumption, accidental spill",null,null,"WatSpillAllo Modified"]
["Receptor","Small bird"]
["Duration","Acute"]
["Parameter/Assumption","Code / Range","Equation/   Value","Units","Reference/Designation"]
["Body weight","BW",{"$f":"'A02'!$C$51","v":0.01},"kg","Default"]
["Allometric coefficients forwater consumption per day in liters and BW in kilograms"]
[null,"alpha",{"$f":"'A02'!$C$54","v":5.8999999999999997E-2},null,"U.S. EPA/ORD 1993"]
[null,"beta",{"$f":"'A02'!$C$55","v":0.67},null,"U.S. EPA/ORD 1993"]
["Amount of water consumed per day",null,"Amnt = alpha BW beta"]
[null,"Amnt",{"$f":"C8*(C6^C9)","v":2.6968203187277624E-3},"liters","Eq"]
["Pond Volume","VPL",{"$f":"'A01'!C27","v":20000000},"liters","Worksheet A01"]
["Mg of a.i. spilled into water","MgA.I."]
[null,"Central ",{"$f":"'A01'!C24","v":5000},"mg","Worksheet A01"]
[null,"Lower ",{"$f":"'A01'!C25","v":600},null,"Worksheet A01"]
[null,"Upper ",{"$f":"'A01'!C26","v":42600},null,"Worksheet A01"]
["Concentration in pond water","ConcWat","MgA.I. ÷ VPL"]
[null,"Central ",{"$f":"C14/C$12","v":2.5000000000000001E-4},"mg/L","Eq"]
[null,"Lower ",{"$f":"C15/C$12","v":3.0000000000000001E-5},null,"Eq"]
[null,"Upper ",2.1299999999999999E-3,null,"Eq"]
["Absorbed Dose","Dose","ConcWat  × Amnt ÷ BW"]
[null,"Central ",{"$f":"C18*C$11/C$6","v":6.7420507968194067E-5},"mg/kg","Eq"]
[null,"Lower ",{"$f":"C19*C$11/C$6","v":8.090460956183287E-6},"mg/kg","Eq"]
[null,"Upper ",5.7442272788901338E-4,"mg/kg","Eq"]

{"sheet":"F05c","index":34,"n_rows":24,"n_cols":5,"rows_kept":24,"cut":false,"hidden":false,"merged":[[16,0,19,0],[20,0,23,0],[0,0,0,4],[1,1,1,3],[2,1,2,3],[6,0,8,0],[9,0,10,0],[12,0,15,0]]}
["Acute exposure of Carnivorous mammal after an accidental spill of the pesticide into a pond"]
["Short Title","Water consumption, accidental spill",null,null,"WatSpillAllo Modified"]
["Receptor","Carnivorous mammal"]
["Duration","Acute"]
["Parameter/Assumption","Code / Range","Equation/   Value","Units","Reference/Designation"]
["Body weight","BW",{"$f":"'A02'!$C$80","v":5},"kg","Default"]
["Allometric coefficients forwater consumption per day in liters and BW in kilograms"]
[null,"alpha",{"$f":"'A02'!$C$83","v":9.9000000000000005E-2},null,"U.S. EPA/ORD 1993"]
[null,"beta",{"$f":"'A02'!$C$84","v":0.9},null,"U.S. EPA/ORD 1993"]
["Amount of water consumed per day",null,"Amnt = alpha BW beta"]
[null,"Amnt",{"$f":"C8*(C6^C9)","v":0.42141326164778842},"liters","Eq"]
["Pond Volume","VPL",{"$f":"'A01'!C27","v":20000000},"liters","Worksheet A01"]
["Mg of a.i. spilled into water","MgA.I."]
[null,"Central ",{"$f":"'A01'!C24","v":5000},"mg","Worksheet A01"]
[null,"Lower ",{"$f":"'A01'!C25","v":600},null,"Worksheet A01"]
[null,"Upper ",{"$f":"'A01'!C26","v":42600},null,"Worksheet A01"]
["Concentration in pond water","ConcWat","MgA.I. ÷ VPL"]
[null,"Central ",{"$f":"C14/C$12","v":2.5000000000000001E-4},"mg/L","Eq"]
[null,"Lower ",{"$f":"C15/C$12","v":3.0000000000000001E-5},null,"Eq"]
[null,"Upper ",2.1299999999999999E-3,null,"Eq"]
["Absorbed Dose","Dose","ConcWat  × Amnt ÷ BW"]
[null,"Central ",{"$f":"C18*C$11/C$6","v":2.1070663082389421E-5},"mg/kg","Eq"]
[null,"Lower ",{"$f":"C19*C$11/C$6","v":2.5284795698867308E-6},"mg/kg","Eq"]
[null,"Upper ",1.7952204946195785E-4,"mg/kg","Eq"]

{"sheet":"F05d","index":35,"n_rows":24,"n_cols":5,"rows_kept":24,"cut":false,"hidden":false,"merged":[[16,0,19,0],[20,0,23,0],[0,0,0,4],[1,1,1,3],[2,1,2,3],[6,0,8,0],[9,0,10,0],[12,0,15,0]]}
["Acute exposure of Large Mammal after an accidental spill of the pesticide into a pond"]
["Short Title","Water consumption, accidental spill",null,null,"WatSpillAllo Modified"]
["Receptor","Carnivorous mammal"]
["Duration","Acute"]
["Parameter/Assumption","Code / Range","Equation/   Value","Units","Reference/Designation"]
["Body weight","BW",{"$f":"'A02'!$C$89","v":70},"kg","Default"]
["Allometric coefficients forwater consumption per day in liters and BW in kilograms"]
[null,"alpha",{"$f":"'A02'!$C$83","v":9.9000000000000005E-2},null,"U.S. EPA/ORD 1993"]
[null,"beta",{"$f":"'A02'!$C$84","v":0.9},null,"U.S. EPA/ORD 1993"]
["Amount of water consumed per day",null,"Amnt = alpha BW beta"]
[null,"Amnt",{"$f":"C8*(C6^C9)","v":4.5313064115862725},"liters","Eq"]
["Pond Volume","VPL",{"$f":"'A01'!C27","v":20000000},"liters","Worksheet A01"]
["Mg of a.i. spilled into water","MgA.I."]
[null,"Central ",{"$f":"'A01'!C24","v":5000},"mg","Worksheet A01"]
[null,"Lower ",{"$f":"'A01'!C25","v":600},null,"Worksheet A01"]
[null,"Upper ",{"$f":"'A01'!C26","v":42600},null,"Worksheet A01"]
["Concentration in pond water","ConcWat","MgA.I. ÷ VPL"]
[null,"Central ",{"$f":"C14/C$12","v":2.5000000000000001E-4},"mg/L","Eq"]
[null,"Lower ",{"$f":"C15/C$12","v":3.0000000000000001E-5},null,"Eq"]
[null,"Upper ",2.1299999999999999E-3,null,"Eq"]
["Absorbed Dose","Dose","ConcWat  × Amnt ÷ BW"]
[null,"Central ",{"$f":"C18*C$11/C$6","v":1.6183237184236689E-5},"mg/kg","Eq"]
[null,"Lower ",{"$f":"C19*C$11/C$6","v":1.9419884621084025E-6},"mg/kg","Eq"]
[null,"Upper ",1.3788118080969658E-4,"mg/kg","Eq"]

{"sheet":"F05e","index":36,"n_rows":24,"n_cols":5,"rows_kept":24,"cut":false,"hidden":false,"merged":[[16,0,19,0],[20,0,23,0],[0,0,0,4],[1,1,1,3],[2,1,2,3],[6,0,8,0],[9,0,10,0],[12,0,15,0]]}
["Acute exposure of Small Bird after an accidental spill of the pesticide into a pond"]
["Short Title","Water consumption, accidental spill",null,null,"WatSpillAllo Modified"]
["Receptor","Small bird"]
["Duration","Acute"]
["Parameter/Assumption","Code / Range","Equation/   Value","Units","Reference/Designation"]
["Body weight","BW",{"$f":"'A02'!$C$40","v":4},"kg","Default"]
["Allometric coefficients forwater consumption per day in liters and BW in kilograms"]
[null,"alpha",{"$f":"'A02'!$C$54","v":5.8999999999999997E-2},null,"U.S. EPA/ORD 1993"]
[null,"beta",{"$f":"'A02'!$C$55","v":0.67},null,"U.S. EPA/ORD 1993"]
["Amount of water consumed per day",null,"Amnt = alpha BW beta"]
[null,"Amnt",{"$f":"C8*(C6^C9)","v":0.14935927808849303},"liters","Eq"]
["Pond Volume","VPL",{"$f":"'A01'!C27","v":20000000},"liters","Worksheet A01"]
["Mg of a.i. spilled into water","MgA.I."]
[null,"Central ",{"$f":"'A01'!C24","v":5000},"mg","Worksheet A01"]
[null,"Lower ",{"$f":"'A01'!C25","v":600},null,"Worksheet A01"]
[null,"Upper ",{"$f":"'A01'!C26","v":42600},null,"Worksheet A01"]
["Concentration in pond water","ConcWat","MgA.I. ÷ VPL"]
[null,"Central ",{"$f":"C14/C$12","v":2.5000000000000001E-4},"mg/L","Eq"]
[null,"Lower ",{"$f":"C15/C$12","v":3.0000000000000001E-5},null,"Eq"]
[null,"Upper ",2.1299999999999999E-3,null,"Eq"]
["Absorbed Dose","Dose","ConcWat  × Amnt ÷ BW"]
[null,"Central ",{"$f":"C18*C$11/C$6","v":9.3349548805308154E-6},"mg/kg","Eq"]
[null,"Lower ",{"$f":"C19*C$11/C$6","v":1.1201945856636978E-6},"mg/kg","Eq"]
[null,"Upper ",7.9533815582122534E-5,"mg/kg","Eq"]

{"sheet":"F08","index":37,"n_rows":30,"n_cols":5,"rows_kept":30,"cut":false,"hidden":false,"merged":[[26,0,29,0],[14,0,17,0],[18,0,21,0],[22,0,25,0],[0,0,0,4],[1,1,1,3],[2,1,2,3],[6,0,9,0],[10,0,13,0]]}
["Acute scenario for the consumption of contaminated fish by Fish-eating bird after an accidental spill of the pesticide into a pond"]
["Short Title","Fish consumption, accidental spill",null,null,"FishPropSpill Modified"]
["Receptor","Fish eating bird"]
["Duration","Acute"]
["Parameter/Assumption","Code / Range","Equation/   Value","Units","Reference/Designation"]
["Pond Volume","VPL",{"$f":"'A01'!C27","v":20000000},"liters","Worksheet A01"]
["Mg of a.i. spilled into water","MgA.I."]
[null,"Central ",{"$f":"'A01'!C24","v":5000},"mg","Worksheet A01"]
[null,"Lower ",{"$f":"'A01'!C25","v":600},null,"Worksheet A01"]
[null,"Upper ",{"$f":"'A01'!C26","v":42600},null,"Worksheet A01"]
["Concentration in pond water","ConcWat","MgA.I. ÷ VPL"]
[null,"Central ",{"$f":"C8/C$6","v":2.5000000000000001E-4},"mg/L","Eq"]
[null,"Lower ",{"$f":"C9/C$6","v":3.0000000000000001E-5},null,"Eq"]
[null,"Upper ",2.1299999999999999E-3,null,"Eq"]
["Bioconcentration factor","BCF"]
[null,"Central ",{"$f":"'B01'!$C$5","v":80},"L/kg","Section 3.2.3.5."]
[null,"Lower ",{"$f":"'B01'!$C$5","v":80},null,"Section 3.2.3.5."]
[null,"Upper ",{"$f":"'B01'!$C$5","v":80},null,"Section 3.2.3.5."]
["Concentration in fish","ConcFish","ConcWat × BCF"]
[null,"Central ",{"$f":"C12*C16","v":0.02},"mg/kg","Eq"]
[null,"Lower ",{"$f":"C13*C17","v":2.4000000000000002E-3},null,"Eq"]
[null,"Upper ",0.1704,null,"Eq"]
["Amount of fish consumed as proportion of body weight","Prop"]
[null,"Central ",{"$f":"'A03'!$E$35","v":0.1},"unitless","U.S. EPA/ORD 1993"]
[null,"Lower ",{"$f":"'A03'!$E$36","v":0.05},null,"U.S. EPA/ORD 1993"]
[null,"Upper ",{"$f":"'A03'!$E$37","v":0.15},null,"U.S. EPA/ORD 1993"]
["Absorbed Dose","Dose","ConcWat  × Amnt ÷ BW"]
[null,"Central ",{"$f":"C20*C24","v":2E-3},"mg/kg","Eq"]
[null,"Lower ",{"$f":"C21*C25","v":1.2000000000000002E-4},"mg/kg","Eq"]
[null,"Upper ",2.5559999999999999E-2,"mg/kg","Eq"]

{"sheet":"F14a","index":38,"n_rows":31,"n_cols":5,"rows_kept":31,"cut":false,"hidden":false,"merged":[[10,0,13,0],[0,0,0,4],[2,1,2,3],[4,1,4,3],[6,0,9,0],[7,3,9,3],[27,0,30,0],[14,0,17,0],[15,3,17,3],[19,0,21,0],[22,0,23,0],[25,0,26,0],[25,1,26,1]]}
["Consumption of Contaminated Insects, Small Mammal, acute exposure scenario, assuming uniform distribution to leaves"]
["Short Title","Small Insects",null,null,"InsCkcal_Ac, Modified"]
["Receptor","Small Mammal"]
["Duration","Acute"]
["Material consumed","Small insects"]
["Parameter/Assumption","Code / Range","Equation/   Value","Units","Reference/Designation"]
["Concentration in insects","rr"]
[null,"Central ",{"$f":"'A01'!C29","v":4.0000000000000001E-3},"mg/kg insect","Worksheet A01"]
[null,"Lower ",{"$f":"'A01'!C30","v":1E-4},null,"Worksheet A01"]
[null,"Upper ",{"$f":"'A01'!C31","v":0.16},null,"Worksheet A01"]
["Proportion of diet contaminated","PropC"]
[null,"Central ",0.1,"unitless","Section 4.2.2.3 of Risk Assessment"]
[null,"Lower ",0.01,null,"Section 4.2.2.3 of Risk Assessment"]
[null,"Upper ",{"$f":"[1]A01!C$37","v":1},null,"Section 4.2.2.3 of Risk Assessment"]
["Average concentration in diet","Conc","rr × PropC  × PropL "]
[null,"Central ",{"$f":"C8*C12","v":4.0000000000000002E-4},"mg/kg diet","Eq"]
[null,"Lower ",{"$f":"C9*C13","v":1.0000000000000002E-6},null,"Eq"]
[null,"Upper ",0.16,null,"Eq"]
["Body weight","BW",{"$f":"'A02'!$C$99","v":0.02},"kg","Default"]
["Allometric coefficients for caloric requirement per day in kilocalories and BW in grams"]
[null,"alpha",{"$f":"'A02'!$C$103","v":1.8939999999999999},null,"U.S. EPA/ORD 1993"]
[null,"beta",{"$f":"'A02'!$C$104","v":0.7},null,"U.S. EPA/ORD 1993"]
["Caloric requirement per day (see Note 1)","KR","alpha x (BW x 1000)beta"]
[null,null,{"$f":"C21*((C19*1000)^C22)","v":15.420589334617929},"kcal/day","Eq"]
["Caloric content of prey (wet  weight)","KCW",{"$f":"'A02'!$C$64","v":1.5},"kcal/g","U.S. EPA/ORD 1993"]
["Amount of food consumed per day,  wet weight","Amnt","(KR ÷ KCW)/1000 g/kg"]
[null,null,{"$f":"(C24/C25)/1000","v":1.0280392889745287E-2},"kg","Eq"]
["Dose","Dose","Amnt   ×  Conc / BW"]
[null,"Central",{"$f":"C$27 * C16/C$19","v":2.0560785779490573E-4},"mg/kg bw","Eq"]
[null,"Lower",{"$f":"C$27 * C17/C$19","v":5.1401964448726446E-7},null,"Eq"]
[null,"Upper",{"$f":"C$27 * C18/C$19","v":8.2243143117962297E-2},null,"Eq"]

{"sheet":"F14b","index":39,"n_rows":31,"n_cols":5,"rows_kept":31,"cut":false,"hidden":false,"merged":[[10,0,13,0],[0,0,0,4],[2,1,2,3],[4,1,4,3],[6,0,9,0],[7,3,9,3],[27,0,30,0],[14,0,17,0],[15,3,17,3],[19,0,21,0],[22,0,23,0],[25,0,26,0],[25,1,26,1]]}
["Consumption of Contaminated Insects, Small Bird, acute exposure scenario, assuming uniform distribution to leaves"]
["Short Title","Small Insects",null,null,"InsCkcal_Ac, Modified"]
["Receptor","Small Bird"]
["Duration","Acute"]
["Material consumed","Small insects"]
["Parameter/Assumption","Code / Range","Equation/   Value","Units","Reference/Designation"]
["Concentration in insects","rr"]
[null,"Central ",{"$f":"'A01'!C29","v":4.0000000000000001E-3},"mg/kg insect","Worksheet A01"]
[null,"Lower ",{"$f":"'A01'!C30","v":1E-4},null,"Worksheet A01"]
[null,"Upper ",{"$f":"'A01'!C31","v":0.16},null,"Worksheet A01"]
["Proportion of diet contaminated","PropC"]
[null,"Central ",0.1,"unitless","Section 4.2.2.3 of Risk Assessment"]
[null,"Lower ",0.01,null,"Section 4.2.2.3 of Risk Assessment"]
[null,"Upper ",{"$f":"[1]A01!C$37","v":1},null,"Section 4.2.2.3 of Risk Assessment"]
["Average concentration in diet","Conc","rr × PropC  × PropL "]
[null,"Central ",{"$f":"C8*C12","v":4.0000000000000002E-4},"mg/kg diet","Eq"]
[null,"Lower ",{"$f":"C9*C13","v":1.0000000000000002E-6},null,"Eq"]
[null,"Upper ",0.16,null,"Eq"]
["Body weight","BW",{"$f":"'A02'!$C$51","v":0.01},"kg","Default"]
["Allometric coefficients for caloric requirement per day in kilocalories and BW in grams"]
[null,"alpha",{"$f":"'A02'!$C$52","v":3.12},null,"U.S. EPA/ORD 1993"]
[null,"beta",{"$f":"'A02'!$C$53","v":0.60399999999999998},null,"U.S. EPA/ORD 1993"]
["Caloric requirement per day (see Note 1)","KR","alpha x (BW x 1000)beta"]
[null,null,{"$f":"C21*((C19*1000)^C22)","v":12.535873298486928},"kcal/day","Eq"]
["Caloric content of prey (wet  weight)","KCW",{"$f":"'A02'!$C$64","v":1.5},"kcal/g","U.S. EPA/ORD 1993"]
["Amount of food consumed per day,  wet weight","Amnt","(KR ÷ KCW)/1000 g/kg"]
[null,null,{"$f":"(C24/C25)/1000","v":8.3572488656579527E-3},"kg","Eq"]
["Dose","Dose","Amnt   ×  Conc / BW"]
[null,"Central",{"$f":"C$27 * C16/C$19","v":3.3428995462631814E-4},"mg/kg bw","Eq"]
[null,"Lower",{"$f":"C$27 * C17/C$19","v":8.3572488656579541E-7},null,"Eq"]
[null,"Upper",{"$f":"C$27 * C18/C$19","v":0.13371598185052724},null,"Eq"]

{"sheet":"G01","index":40,"n_rows":52,"n_cols":6,"rows_kept":52,"cut":false,"hidden":false,"merged":[[0,0,0,5],[1,2,1,4],[2,0,3,0],[2,1,3,1],[2,2,2,4],[2,5,3,5]]}
["Summary of Exposure Assessments for the Terrestrial Animals"]
[null,null,null,null,null,"G01V5 Modified"]
["Scenario","Receptor","mg/kg/day or mg/kg/event",null,null,"Detail Worksheet"]
[null,null,"Central","Lower","Upper"]
["Accidental Acute Exposures"]
["   Direct Spray"]
["first-order absorption","Small mammal","No exposure assessment"]
["100% absorption","Small mammal","No exposure assessment"]
["   Contaminated Water"]
["Spill","Small Mammal",{"$f":"F05a!$C$22","v":3.6599251506550768E-5},{"$f":"F05a!$C$23","v":4.3919101807860918E-6},{"$f":"F05a!$C$24","v":3.118256228358125E-4},"F05a"]
["Spill","Canid",{"$f":"F05c!$C$22","v":2.1070663082389421E-5},{"$f":"F05c!$C$23","v":2.5284795698867308E-6},{"$f":"F05c!$C$24","v":1.7952204946195785E-4},"F05c"]
["Spill","Large Mammal",{"$f":"F05d!$C$22","v":1.6183237184236689E-5},{"$f":"F05d!$C$23","v":1.9419884621084025E-6},{"$f":"F05d!$C$24","v":1.3788118080969658E-4},"F05d"]
["Spill","Small Bird",{"$f":"F05b!$C$22","v":6.7420507968194067E-5},{"$f":"F05b!$C$23","v":8.090460956183287E-6},{"$f":"F05b!$C$24","v":5.7442272788901338E-4},"F05b"]
["Spill","Large Bird",{"$f":"F05e!$C$22","v":9.3349548805308154E-6},{"$f":"F05e!$C$23","v":1.1201945856636978E-6},{"$f":"F05e!$C$24","v":7.9533815582122534E-5},"F05e"]
["   Consumption of contaminated Fish"]
["Spill","Fish-eating bird",{"$f":"'F08'!$C$28","v":2E-3},{"$f":"'F08'!$C$29","v":1.2000000000000002E-4},{"$f":"'F08'!$C$30","v":2.5559999999999999E-2},"F08"]
["Non-Accidental Acute Exposures"]
["   Contaminated Vegetation"]
["Fruit","Small Mammal","No exposure assessment"]
["Grass","Small Mammal","No exposure assessment"]
["Grass","Large Mammal","No exposure assessment"]
["Grass","Large Bird","No exposure assessment"]
["   Contaminated Water"]
[null,"Small Mammal","No exposure assessment"]
[null,"Canid","No exposure assessment"]
[null,"Large Mammal","No exposure assessment"]
[null,"Small Bird","No exposure assessment"]
[null,"Large Bird","No exposure assessment"]
["   Contaminated Insects"]
[null,"Small Mammal",{"$f":"F14a!$C$29","v":2.0560785779490573E-4},{"$f":"F14a!$C$30","v":5.1401964448726446E-7},{"$f":"F14a!$C$31","v":8.2243143117962297E-2},"F14a1"]
[null,"Small Bird",{"$f":"F14b!$C$29","v":3.3428995462631814E-4},{"$f":"F14b!$C$30","v":8.3572488656579541E-7},{"$f":"F14b!$C$31","v":0.13371598185052724},"F14b1"]
["   Consumption of small mammal (after direct spray) by predator"]
[null,"Carnivorous mammal","No exposure assessment"]
[null,"Carnivorous bird","No exposure assessment"]
["   Consumption of contaminated Fish"]
[null,"Fish-eating bird","No exposure assessment"]
["Chronic/Longer Term Exposures"]
["   Contaminated Vegetation"]
["On-site","Small Mammal","No exposure assessment"]
["Off-Site",null,"No exposure assessment"]
["On-Site","Large Mammal","No exposure assessment"]
["Off-Site",null,"No exposure assessment"]
["On-Site","Large Bird","No exposure assessment"]
["Off-Site",null,"No exposure assessment"]
["   Contaminated Water"]
[null,"Small Mammal","No exposure assessment"]
[null,"Canid","No exposure assessment"]
[null,"Large Mammal","No exposure assessment"]
[null,"Small Bird","No exposure assessment"]
[null,"Large Bird","No exposure assessment"]
["   Consumption of contaminated Fish"]
[null,"Fish-eating bird","No exposure assessment"]

{"sheet":"G02","index":41,"n_rows":52,"n_cols":6,"rows_kept":52,"cut":false,"hidden":false,"merged":[[0,0,0,5],[1,2,1,4],[2,0,3,0],[2,1,3,1],[2,2,2,4],[2,5,3,5]]}
["Summary of Exposure Assessments for the Terrestrial Animals"]
[null,null,null,null,null,"G01V5 Modified"]
["Scenario","Receptor","Hazard Quotient",null,null,"Toxicity Value"]
[null,null,"Central","Lower","Upper"]
["Accidental Acute Exposures"]
["   Direct Spray"]
["first-order absorption","Small mammal"]
["100% absorption","Small mammal"]
["   Contaminated Water"]
["Spill","Small Mammal",{"$f":"'G01'!C10/'G02'!$F10","v":4.8799002008734357E-4},{"$f":"'G01'!D10/'G02'!$F10","v":5.8558802410481224E-5},{"$f":"'G01'!E10/'G02'!$F10","v":4.1576749711441669E-3},{"$f":"'B02'!$E$5","v":7.4999999999999997E-2}]
["Spill","Canid",{"$f":"'G01'!C11/'G02'!$F11","v":2.8094217443185894E-4},{"$f":"'G01'!D11/'G02'!$F11","v":3.3713060931823078E-5},{"$f":"'G01'!E11/'G02'!$F11","v":2.3936273261594382E-3},{"$f":"'B02'!$E$5","v":7.4999999999999997E-2}]
["Spill","Large Mammal",{"$f":"'G01'!C12/'G02'!$F12","v":2.1577649578982252E-4},{"$f":"'G01'!D12/'G02'!$F12","v":2.5893179494778701E-5},{"$f":"'G01'!E12/'G02'!$F12","v":1.8384157441292878E-3},{"$f":"'B02'!$E$5","v":7.4999999999999997E-2}]
["Spill","Small Bird",{"$f":"'G01'!C13/'G02'!$F13","v":1.4656632166998711E-5},{"$f":"'G01'!D13/'G02'!$F13","v":1.7587958600398451E-6},{"$f":"'G01'!E13/'G02'!$F13","v":1.2487450606282901E-4},{"$f":"'B02'!$E$7","v":4.5999999999999996}]
["Spill","Large Bird",{"$f":"'G01'!C14/'G02'!$F14","v":2.0293380175066993E-6},{"$f":"'G01'!D14/'G02'!$F14","v":2.4352056210080388E-7},{"$f":"'G01'!E14/'G02'!$F14","v":1.7289959909157074E-5},{"$f":"'B02'!$E$7","v":4.5999999999999996}]
["   Consumption of contaminated Fish"]
["Spill","Fish-eating bird",{"$f":"'G01'!C16/'G02'!$F16","v":4.3478260869565219E-4},{"$f":"'G01'!D16/'G02'!$F16","v":2.6086956521739135E-5},{"$f":"'G01'!E16/'G02'!$F16","v":5.5565217391304348E-3},{"$f":"'B02'!$E$7","v":4.5999999999999996}]
["Non-Accidental Acute Exposures"]
["   Contaminated Vegetation"]
["Fruit","Small Mammal","No exposure assessment"]
["Grass","Small Mammal","No exposure assessment"]
["Grass","Large Mammal","No exposure assessment"]
["Grass","Large Bird","No exposure assessment"]
["   Contaminated Water"]
[null,"Small Mammal","No exposure assessment"]
[null,"Canid","No exposure assessment"]
[null,"Large Mammal","No exposure assessment"]
[null,"Small Bird","No exposure assessment"]
[null,"Large Bird","No exposure assessment"]
["   Contaminated Insects"]
[null,"Small Mammal",{"$f":"'G01'!C30/'G02'!$F30","v":2.7414381039320766E-3},{"$f":"'G01'!D30/'G02'!$F30","v":6.8535952598301928E-6},{"$f":"'G01'!E30/'G02'!$F30","v":1.0965752415728307},{"$f":"'B02'!$E$5","v":7.4999999999999997E-2}]
[null,"Small Bird",{"$f":"'G01'!C31/'G02'!$F31","v":7.2671729266590905E-5},{"$f":"'G01'!D31/'G02'!$F31","v":1.8167932316647729E-7},{"$f":"'G01'!E31/'G02'!$F31","v":2.9068691706636361E-2},{"$f":"'B02'!$E$7","v":4.5999999999999996}]
["   Consumption of small mammal (after direct spray) by predator"]
[null,"Carnivorous mammal","No exposure assessment"]
[null,"Carnivorous bird","No exposure assessment"]
["   Consumption of contaminated Fish"]
[null,"Fish-eating bird","No exposure assessment"]
["Chronic/Longer Term Exposures"]
["   Contaminated Vegetation"]
["On-site","Small Mammal","No exposure assessment"]
["Off-Site",null,"No exposure assessment"]
["On-Site","Large Mammal","No exposure assessment"]
["Off-Site",null,"No exposure assessment"]
["On-Site","Large Bird","No exposure assessment"]
["Off-Site",null,"No exposure assessment"]
["   Contaminated Water"]
[null,"Small Mammal","No exposure assessment"]
[null,"Canid","No exposure assessment"]
[null,"Large Mammal","No exposure assessment"]
[null,"Small Bird","No exposure assessment"]
[null,"Large Bird","No exposure assessment"]
["   Consumption of contaminated Fish"]
[null,"Fish-eating bird","No exposure assessment"]

{"sheet":"G03","index":42,"n_rows":40,"n_cols":7,"rows_kept":40,"cut":false,"hidden":false,"merged":[[7,6,8,6],[0,0,0,5],[2,2,2,4],[7,0,8,0],[7,1,8,1],[7,2,7,4],[7,5,8,5]]}
["Worksheet G03: Summary of Hazard Quotients for Aquatic Species"]
[null,null,null,null,null,"AqToxSumV5 Modified"]
["Exposures",null,"Concentrations (mg/L)"]
[null,"Scenario","Central","Lower","Upper","Worksheet"]
[null,"Accidental Spill",{"$f":"'D05'!$C$21","v":1.8796992481203007E-5},{"$f":"'D05'!$C$22","v":1.3759398496240601E-6},{"$f":"'D05'!$C$23","v":2.4022556390977442E-4},"D05"]
[null,"Peak EEC","No exposure assessment."]
[null,"Chronic","No exposure assessment."]
["Receptor","Type","Hazard Quotients",null,null,"Toxicity Value","Toxicity Endpoint"]
[null,null,"Central","Lower","Upper"]
["Accidental Acute Exposures"]
["Fish","Sensitive",{"$f":"C$5/$F11","v":2.1605738484141387E-3},{"$f":"D$5/$F11","v":1.5815400570391496E-4},2.7612133782732695E-2,{"$f":"'B02'!E11","v":8.6999999999999994E-3},"NOAEC*"]
[null,"Tolerant",2.6106934001670842E-4,1.9110275689223059E-5,3.3364661654135337E-3,{"$f":"'B02'!E12","v":7.1999999999999995E-2},"NOAEC*"]
["Amphibian","Sensitive","No toxicity data",null,null,"N/A"]
[null,"Tolerant","No toxicity data",null,null,"N/A"]
["Invertebrate","Sensitive",9.3984962406015029,0.68796992481203001,120.11278195488721,{"$f":"'B02'!$E$15","v":1.9999999999999999E-6},"NOAEC*"]
[null,"Tolerant",7.5187969924812024E-4,5.50375939849624E-5,9.6090225563909767E-3,{"$f":"'B02'!$E$17","v":2.5000000000000001E-2},"NOAEC*"]
["Macrophyte","General",1.9996800511918092E-4,1.4637657974724043E-5,2.5555911054231323E-3,{"$f":"'B02'!$E$20","v":9.4E-2},"NOAEC"]
["Algae","General",4.8197416618469251E-3,3.5280508964719492E-4,6.1596298438403703E-2,{"$f":"'B02'!$E$19","v":3.8999999999999998E-3},"NOAEC"]
["Non-Accidental Acute Exposures"]
["Fish","Sensitive"]
[null,"Tolerant"]
["Amphibian","Sensitive"]
[null,"Tolerant"]
["Invertebrate","Sensitive"]
[null,"Tolerant"]
["Macrophyte","Sensitive"]
[null,"Tolerant"]
["Algae","Sensitive"]
[null,"Tolerant"]
["Chronic/Longer Term Exposures"]
["Fish","Sensitive"]
[null,"Tolerant"]
["Amphibian","Sensitive"]
[null,"Tolerant"]
["Invertebrate","Sensitive"]
[null,"Tolerant"]
["Macrophyte","Sensitive"]
[null,"Tolerant"]
["Algae","Sensitive"]
[null,"Tolerant"]

{"sheet":"G07a","index":43,"n_rows":30,"n_cols":5,"rows_kept":30,"cut":false,"hidden":false,"merged":[[10,0,13,0],[11,3,13,3],[0,0,0,4],[2,1,2,3],[4,1,4,3],[6,0,9,0],[7,3,9,3],[15,0,18,0],[16,3,18,3],[19,0,22,0],[23,1,23,2],[26,1,26,2]]}
["Consumption of Leaves of Treated Ash Tree, Assuming Uniform Distribution to Leaves"]
["Short Title","Ash tree, uniform",null,null,"FdPropBW_Ac Modified"]
["Receptor","Herbivorous Insect"]
["Duration","Acute"]
["Material consumed","Leaves of Ash Tree"]
["Parameter/Assumption","Code / Range","Equation/   Value","Units","Reference/Designation"]
["Amount consumed per day  per unit body weight","Amnt"]
[null,"Central ",1.3,"kg food/kg BW per day","Waldbauer 1968"]
[null,"Lower ",0.6,null,"Reichle et al. 1973"]
[null,"Upper ",2.2000000000000002,null,"Waldbauer 1968"]
["Concentrations in Trees Assuming Uniform Distribution","rr"]
[null,"Central ",3,"mg/kg leaf","Section 4.2.3 of Risk Assessment"]
[null,"Lower ",0.4,null,"Section 4.2.3 of Risk Assessment"]
[null,"Upper ",19,null,"Section 4.2.3 of Risk Assessment"]
["Distribution factor to leaves","PropL",1,"proportion","Section 4.2.3 of Risk Assessment"]
["Concentration in leaves","Conc","rr  × PropL"]
[null,"Central ",{"$f":"C12*C$15","v":3},"mg/kg leaf","Eq"]
[null,"Lower ",{"$f":"C13*C$15","v":0.4},null,"Eq"]
[null,"Upper ",19,null,"Eq"]
["Dose","Dose","Conc × Amnt"]
[null,"Central",{"$f":"C8*C17","v":3.9000000000000004},"mg/kg bw","Eq"]
[null,"Lower",{"$f":"C9*C18","v":0.24},null,"Eq"]
[null,"Upper",41.800000000000004,null,"Eq"]
[null,"Toxicity Values \n(mg/kg bw)"]
[null,"Sensitive Populations","Tolerant Populations"]
["Toxicity Values",{"$f":"'B02'!$E$9","v":1.0000000000000001E-5},{"$f":"'B02'!$E$10","v":8.0000000000000002E-3},null,"Section 4.3.2.4. of Risk Assessment"]
[null,"HQs"]
["Central",{"$f":"$C21/B$26","v":390000},{"$f":"$C21/C$26","v":487.50000000000006}]
["Lower",{"$f":"$C22/B$26","v":23999.999999999996},30]
["Upper",{"$f":"$C23/B$26","v":4180000},5225]

{"sheet":"G07b","index":44,"n_rows":30,"n_cols":5,"rows_kept":30,"cut":false,"hidden":false,"merged":[[10,0,13,0],[11,3,13,3],[0,0,0,4],[2,1,2,3],[4,1,4,3],[6,0,9,0],[7,3,9,3],[15,0,18,0],[16,3,18,3],[19,0,22,0],[23,1,23,2],[26,1,26,2]]}
["Consumption of Leaves of Treated Ash Tree, Assuming Limited Distribution to Leaves"]
["Short Title","Ash tree, uniform",null,null,"FdPropBW_Ac Modified"]
["Receptor","Herbivorous Insect"]
["Duration","Acute"]
["Material consumed","Leaves of Ash Tree"]
["Parameter/Assumption","Code / Range","Equation/   Value","Units","Reference/Designation"]
["Amount consumed per day  per unit body weight","Amnt"]
[null,"Central ",{"$f":"G07a!C8","v":1.3},"kg food/kg BW per day","Waldbauer 1968"]
[null,"Lower ",{"$f":"G07a!C9","v":0.6},null,"Reichle et al. 1973"]
[null,"Upper ",{"$f":"G07a!C10","v":2.2000000000000002},null,"Waldbauer 1968"]
["Concentrations in Trees Assuming Uniform Distribution","rr"]
[null,"Central ",{"$f":"G07a!C12","v":3},"mg/kg leaf","Section 4.2.3 of Risk Assessment"]
[null,"Lower ",{"$f":"G07a!C13","v":0.4},null,"Section 4.2.3 of Risk Assessment"]
[null,"Upper ",{"$f":"G07a!C14","v":19},null,"Section 4.2.3 of Risk Assessment"]
["Distribution factor to leaves","PropR",0.1,"proportion","Section 4.2.3 of Risk Assessment"]
["Concentration in leaves","Conc","rr  × PropR"]
[null,"Central ",{"$f":"C12*C$15","v":0.30000000000000004},"mg/kg leaf","Eq"]
[null,"Lower ",{"$f":"C13*C$15","v":4.0000000000000008E-2},null,"Eq"]
[null,"Upper ",1.9000000000000001,null,"Eq"]
["Dose","Dose","Conc × Amnt"]
[null,"Central",{"$f":"C8*C17","v":0.39000000000000007},"mg/kg bw","Eq"]
[null,"Lower",{"$f":"C9*C18","v":2.4000000000000004E-2},null,"Eq"]
[null,"Upper",4.1800000000000006,null,"Eq"]
[null,"Toxicity Values \n(mg/kg bw)"]
[null,"Sensitive Populations","Tolerant Populations"]
["Toxicity Values",{"$f":"'B02'!$E$9","v":1.0000000000000001E-5},{"$f":"'B02'!$E$10","v":8.0000000000000002E-3},null,"Section 4.3.2.4. of Risk Assessment"]
[null,"HQs"]
["Central",{"$f":"$C21/B$26","v":39000.000000000007},{"$f":"$C21/C$26","v":48.750000000000007}]
["Lower",{"$f":"$C22/B$26","v":2400},3.0000000000000004]
["Upper",418000,522.50000000000011]